Workbook

Sheet Cashflow
B4: Momento 0 | C4: MES 1 | D4: MES 2 | E4: MES 3 | F4: MES 4 | G4: MES 5 | H4: MES 6 | I4: MES 7 | J4: MES 8 | K4: MES 9 | L4: MES 10 | M4: MES 11 | N4: MES 12 | O4: MES 13 | P4: MES 14 | Q4: MES 15 | R4: MES 16 | S4: MES 17 | T4: MES 18 | U4: MES 19 | V4: MES 20 | W4: MES 21 | X4: MES 22 | Y4: MES 23 | Z4: MES 24 | AA4: MES 25 | AB4: MES 26 | AC4: MES 27 | AD4: MES 28 | AE4: MES 29 | AF4: MES 30 | AG4: MES 31 | AH4: MES 32 | AI4: MES 33 | AJ4: MES 34 | AK4: MES 35 | AL4: MES 36 | AM4: MES 37 | AN4: MES 38 | AO4: MES 39 | AP4: MES 40 | AQ4: MES 41 | AR4: MES 42 | AS4: MES 43 | AT4: MES 44 | AU4: MES 45 | AV4: MES 46 | AW4: MES 47 | AX4: MES 48 | AY4: MES 49 | AZ4: MES 50 | BA4: MES 51 | BB4: MES 52 | BC4: MES 53 | BD4: MES 54 | BE4: MES 55 | BF4: MES 56 | BG4: MES 57 | BH4: MES 58 | BI4: MES 59 | BJ4: MES 60
A5: Meses | B5: 0 | C5: 1 | D5: 2 | E5: 3 | F5: 4 | G5: 5 | H5: 6 | I5: 7 | J5: 8 | K5: 9 | L5: 10 | M5: 11 | N5: 12 | O5: 13 | P5: 14 | Q5: 15 | R5: 16 | S5: 17 | T5: 18 | U5: 19 | V5: 20 | W5: 21 | X5: 22 | Y5: 23 | Z5: 24 | AA5: 25 | AB5: 26 | AC5: 27 | AD5: 28 | AE5: 29 | AF5: 30 | AG5: 31 | AH5: 32 | AI5: 33 | AJ5: 34 | AK5: 35 | AL5: 36 | AM5: 37 | AN5: 38 | AO5: 39 | AP5: 40 | AQ5: 41 | AR5: 42 | AS5: 43 | AT5: 44 | AU5: 45 | AV5: 46 | AW5: 47 | AX5: 48 | AY5: 49 | AZ5: 50 | BA5: 51 | BB5: 52 | BC5: 53 | BD5: 54 | BE5: 55 | BF5: 56 | BG5: 57 | BH5: 58 | BI5: 59 | BJ5: 60
A6: NOPAT | B6: ='ER Mensual'!B34 -> -10000 | C6: =+'ER Mensual'!C34 -> -48845.45583 | D6: =+'ER Mensual'!D34 -> -48566.79099 | E6: =+'ER Mensual'!E34 -> -48249.46859 | F6: =+'ER Mensual'!F34 -> -48131.89189 | G6: =+'ER Mensual'!G34 -> -48006.27648 | H6: =+'ER Mensual'!H34 -> -47864.84006 | I6: =+'ER Mensual'!I34 -> -47703.95164 | J6: =+'ER Mensual'!J34 -> -47528.53926 | K6: =+'ER Mensual'!K34 -> -47332.20564 | L6: =+'ER Mensual'!L34 -> -47111.05963 | M6: =+'ER Mensual'!M34 -> -46863.63199 | N6: =+'ER Mensual'!N34 -> -47493.79945 | O6: =+'ER Mensual'!O34 -> -69556.73174 | P6: =+'ER Mensual'!P34 -> -68295.32209 | Q6: =+'ER Mensual'!Q34 -> -66889.77766 | R6: =+'ER Mensual'!R34 -> -65357.72797 | S6: =+'ER Mensual'!S34 -> -63683.67146 | T6: =+'ER Mensual'!T34 -> -61850.95656 | U6: =+'ER Mensual'!U34 -> -59851.91856 | V6: =+'ER Mensual'!V34 -> -57639.42857 | W6: =+'ER Mensual'!W34 -> -55199.96691 | X6: =+'ER Mensual'!X34 -> -52537.07556 | Y6: =+'ER Mensual'!Y34 -> -49629.9622 | Z6: =+'ER Mensual'!Z34 -> -47368.07727 | AA6: =+'ER Mensual'!AA34 -> -49311.27336 | AB6: =+'ER Mensual'!AB34 -> -39873.27132 | AC6: =+'ER Mensual'!AC34 -> -29502.86607 | AD6: =+'ER Mensual'!AD34 -> -18460.99309 | AE6: =+'ER Mensual'!AE34 -> -6766.645829 | AF6: =+'ER Mensual'!AF34 -> 4767.515702 | AG6: =+'ER Mensual'!AG34 -> 15889.71491 | AH6: =+'ER Mensual'!AH34 -> 27657.67872 | AI6: =+'ER Mensual'!AI34 -> 40106.4632 | AJ6: =+'ER Mensual'!AJ34 -> 53270.71303 | AK6: =+'ER Mensual'!AK34 -> 67198.14682 | AL6: =+'ER Mensual'!AL34 -> 83457.82078 | AM6: =+'ER Mensual'!AM34 -> 103620.2078 | AN6: =+'ER Mensual'!AN34 -> 125559.3013 | AO6: =+'ER Mensual'!AO34 -> 148505.1239 | AP6: =+'ER Mensual'!AP34 -> 172101.0133 | AQ6: =+'ER Mensual'!AQ34 -> 196275.2858 | AR6: =+'ER Mensual'!AR34 -> 221019.5871 | AS6: =+'ER Mensual'!AS34 -> 246344.6961 | AT6: =+'ER Mensual'!AT34 -> 272264.6608 | AU6: =+'ER Mensual'!AU34 -> 298795.3453 | AV6: =+'ER Mensual'!AV34 -> 325952.6138 | AW6: =+'ER Mensual'!AW34 -> 353746.9412 | AX6: =+'ER Mensual'!AX34 -> 389412.7245 | AY6: =+'ER Mensual'!AY34 -> 424691.8416 | AZ6: =+'ER Mensual'!AZ34 -> 462034.6771 | BA6: =+'ER Mensual'!BA34 -> 499841.1589 | BB6: =+'ER Mensual'!BB34 -> 537453.7431 | BC6: =+'ER Mensual'!BC34 -> 574710.5111 | BD6: =+'ER Mensual'!BD34 -> 611572.7106 | BE6: =+'ER Mensual'!BE34 -> 648031.5182 | BF6: =+'ER Mensual'!BF34 -> 684089.8327 | BG6: =+'ER Mensual'!BG34 -> 719753.8852 | BH6: =+'ER Mensual'!BH34 -> 755022.6286 | BI6: =+'ER Mensual'!BI34 -> 789904.4522 | BJ6: =+'ER Mensual'!BJ34 -> 840023.1687
A7: Aporte + Prestamo | B7: =+'Prestamo- Aportes'!B6+'Prestamo- Aportes'!B7 -> 650000 | C7: 0 | D7: 0 | E7: 0 | F7: 0 | G7: 0 | H7: 0 | I7: =+'Prestamo- Aportes'!C6 -> 535000 | J7: 0 | K7: 0 | L7: 0 | M7: 0 | N7: 0 | O7: =+C7 -> 0 | P7: 0 | Q7: =+'Prestamo- Aportes'!D6 -> 532000 | R7: 0 | S7: 0 | T7: 0 | U7: 0 | V7: 0 | W7: 0 | X7: 0 | Y7: 0 | Z7: 0 | AA7: =+C7 -> 0 | AB7: 0 | AC7: 0 | AD7: 0 | AE7: 0 | AF7: 0 | AG7: 0 | AH7: 0 | AI7: 0 | AK7: 0 | AL7: 0 | AM7: =+C7 -> 0 | AN7: 0 | AO7: 0 | AP7: 0 | AQ7: 0 | AR7: 0 | AS7: 0 | AT7: 0 | AU7: 0 | AV7: 0 | AW7: 0 | AX7: ='Prestamo- Aportes'!E6 -> -815000 | AY7: =+C7 -> 0 | AZ7: 0 | BA7: 0 | BB7: 0 | BC7: 0 | BD7: 0 | BE7: 0 | BF7: 0 | BG7: 0 | BH7: 0 | BI7: 0 | BJ7: =+'Prestamo- Aportes'!F6 -> -815000
A8: Intereses | B8: =-'ER Mensual'!B23 -> 0 | C8: =-'ER Mensual'!C23 -> 0 | D8: =-'ER Mensual'!D23 -> 0 | E8: =-'ER Mensual'!E23 -> 0 | F8: =-'ER Mensual'!F23 -> 0 | G8: =-'ER Mensual'!G23 -> 0 | H8: =-'ER Mensual'!H23 -> 0 | I8: =-'ER Mensual'!I23 -> 0 | J8: =-'ER Mensual'!J23 -> 0 | K8: =-'ER Mensual'!K23 -> 0 | L8: =-'ER Mensual'!L23 -> 0 | M8: =-'ER Mensual'!M23 -> 0 | N8: 0 | O8: 0 | P8: 0 | Q8: 0 | R8: 0 | S8: 0 | T8: 0 | U8: 0 | V8: 0 | W8: 0 | X8: 0 | Y8: 0 | Z8: 0 | AA8: =-'ER Mensual'!AA23 -> 787.5 | AB8: =-'ER Mensual'!AB23 -> 755.6210456 | AC8: =-'ER Mensual'!AC23 -> 723.6623937 | AD8: =-'ER Mensual'!AD23 -> 691.6238453 | AE8: =-'ER Mensual'!AE23 -> 659.5052005 | AF8: =-'ER Mensual'!AF23 -> 627.306259 | AG8: =-'ER Mensual'!AG23 -> 595.0268203 | AH8: =-'ER Mensual'!AH23 -> 562.6666829 | AI8: =-'ER Mensual'!AI23 -> 530.2256451 | AJ8: =-'ER Mensual'!AJ23 -> 497.7035048 | AK8: =-'ER Mensual'!AK23 -> 465.1000592 | AL8: =-'ER Mensual'!AL23 -> 432.4151049 | AM8: =-'ER Mensual'!AM23 -> 399.6484382 | AN8: =-'ER Mensual'!AN23 -> 366.7998549 | AO8: =-'ER Mensual'!AO23 -> 333.8691501 | AP8: =-'ER Mensual'!AP23 -> 300.8561185 | AQ8: =-'ER Mensual'!AQ23 -> 267.7605544 | AR8: =-'ER Mensual'!AR23 -> 234.5822513 | AS8: =-'ER Mensual'!AS23 -> 201.3210025 | AT8: =-'ER Mensual'!AT23 -> 167.9766006 | AU8: =-'ER Mensual'!AU23 -> 134.5488377 | AV8: =-'ER Mensual'!AV23 -> 101.0375053 | AW8: =-'ER Mensual'!AW23 -> 67.44239464 | AX8: =-'ER Mensual'!AX23 -> 33.76329619 | AY8: =-'ER Mensual'!AY23 -> 0 | AZ8: =-'ER Mensual'!AZ23 -> 0 | BA8: =-'ER Mensual'!BA23 -> 0 | BB8: =-'ER Mensual'!BB23 -> 0 | BC8: =-'ER Mensual'!BC23 -> 0 | BD8: =-'ER Mensual'!BD23 -> 0 | BE8: =-'ER Mensual'!BE23 -> 0 | BF8: =-'ER Mensual'!BF23 -> 0 | BG8: =-'ER Mensual'!BG23 -> 0 | BH8: =-'ER Mensual'!BH23 -> 0 | BI8: =-'ER Mensual'!BI23 -> 0 | BJ8: =-'ER Mensual'!BJ23 -> 0
A9: Amortizacion | B9: 0 | C9: =Amort!F5 -> 164.7 | D9: =C9 -> 164.7 | E9: =D9 -> 164.7 | F9: 164.7 | G9: 164.7 | H9: 164.7 | I9: 164.7 | J9: 164.7 | K9: 164.7 | L9: 164.7 | M9: 164.7 | N9: 164.7 | O9: =Amort!F6 -> 54.9 | P9: =O9 -> 54.9 | Q9: =P9 -> 54.9 | R9: 54.9 | S9: 54.9 | T9: 54.9 | U9: 54.9 | V9: 54.9 | W9: 54.9 | X9: 54.9 | Y9: 54.9 | Z9: 54.9 | AA9: 54.9 | AB9: 54.9 | AC9: 54.9 | AD9: 54.9 | AE9: 54.9 | AF9: 54.9 | AG9: 54.9 | AH9: 54.9 | AI9: 54.9 | AJ9: 54.9 | AK9: 54.9 | AL9: 54.9 | AM9: 54.9 | AN9: 54.9 | AO9: 54.9 | AP9: 54.9 | AQ9: 54.9 | AR9: 54.9 | AS9: 54.9 | AT9: 54.9 | AU9: 54.9 | AV9: 54.9 | AW9: 54.9 | AX9: 54.9 | AY9: 54.9 | AZ9: 54.9 | BA9: 54.9 | BB9: 54.9 | BC9: 54.9 | BD9: 54.9 | BE9: 54.9 | BF9: 54.9 | BG9: 54.9 | BH9: 54.9 | BI9: 54.9 | BJ9: 54.9
A10: INGRESOS | B10: =+SUM(B6:B7) -> 640000 | C10: -48845.45583 | D10: -48566.79099 | E10: -48249.46859 | F10: -48131.89189 | G10: -48006.27648 | H10: -47864.84006 | I10: 487296.0484 | J10: -47528.53926 | K10: -47332.20564 | L10: -47111.05963 | M10: -46863.63199 | N10: -47493.79945 | O10: -69556.73174 | P10: -68295.32209 | Q10: 465110.2223 | R10: -65357.72797 | S10: -63683.67146 | T10: -61850.95656 | U10: -59851.91856 | V10: -57639.42857 | W10: -55199.96691 | X10: -52537.07556 | Y10: -49629.9622 | Z10: -47368.07727 | AA10: -49311.27336 | AB10: -39873.27132 | AC10: -29502.86607 | AD10: -18460.99309 | AE10: -6766.645829 | AF10: 4767.515702 | AG10: 15889.71491 | AH10: =+SUM(AH6:AH7) -> 27657.67872 | AI10: 40106.4632 | AJ10: 53270.71303 | AK10: 67198.14682 | AL10: 83457.82078 | AM10: 103620.2078 | AN10: 125559.3013 | AO10: 148505.1239 | AP10: 172101.0133 | AQ10: 196275.2858 | AR10: 221019.5871 | AS10: 246344.6961 | AT10: 272264.6608 | AU10: 298795.3453 | AV10: 325952.6138 | AW10: 353746.9412 | AX10: -425587.2755 | AY10: 424691.8416 | AZ10: 462034.6771 | BA10: 499841.1589 | BB10: 537453.7431 | BC10: 574710.5111 | BD10: 611572.7106 | BE10: 648031.5182 | BF10: 684089.8327 | BG10: 719753.8852 | BH10: 755022.6286 | BI10: 789904.4522 | BJ10: 25023.16868
A11: CAPEX | B11: =Amort!D5 -> 9882 | C11: 0 | D11: 0 | E11: 0 | F11: 0 | G11: 0 | H11: 0 | I11: 0 | J11: 0 | K11: 0 | L11: 0 | M11: 0 | N11: 0 | O11: =Amort!D6 -> 3294 | P11: 0 | Q11: 0 | R11: 0 | S11: 0 | T11: 0 | U11: 0 | V11: 0 | W11: 0 | X11: 0 | Y11: 0 | Z11: 0 | AA11: 0 | AB11: 0 | AC11: 0 | AD11: 0 | AE11: 0 | AF11: 0 | AG11: 0 | AH11: 0 | AI11: 0 | AJ11: 0 | AK11: 0 | AL11: 0 | AM11: 0 | AN11: 0 | AO11: 0 | AP11: 0 | AQ11: 0 | AR11: 0 | AS11: 0 | AT11: 0 | AU11: 0 | AV11: 0 | AW11: 0 | AX11: 0 | AY11: 0 | AZ11: 0 | BA11: 0 | BB11: 0 | BC11: 0 | BD11: 0 | BE11: 0 | BF11: 0 | BG11: 0 | BH11: 0 | BI11: 0 | BJ11: 0
A12: Cuota de Prestamo | B12: 0 | C12: 0 | D12: 0 | E12: 0 | F12: 0 | G12: 0 | H12: 0 | I12: 0 | J12: 0 | K12: 0 | L12: 0 | M12: 0 | N12: 0 | O12: 0 | P12: 0 | Q12: 0 | R12: 0 | S12: 0 | T12: 0 | U12: 0 | V12: 0 | W12: 0 | X12: 0 | Y12: 0 | Z12: 0 | AA12: =+'Prestamo- Aportes'!F22 -> 13539.08177 | AB12: =+AA12 -> 13539.08177 | AC12: 13539.08177 | AD12: 13539.08177 | AE12: 13539.08177 | AF12: 13539.08177 | AG12: 13539.08177 | AH12: 13539.08177 | AI12: 13539.08177 | AJ12: 13539.08177 | AK12: 13539.08177 | AL12: 13539.08177 | AM12: =+AL12 -> 13539.08177 | AN12: =+AM12 -> 13539.08177 | AO12: =+AN12 -> 13539.08177 | AP12: =+AO12 -> 13539.08177 | AQ12: =+AP12 -> 13539.08177 | AR12: =+AQ12 -> 13539.08177 | AS12: =+AR12 -> 13539.08177 | AT12: =+AS12 -> 13539.08177 | AU12: =+AT12 -> 13539.08177 | AV12: =+AU12 -> 13539.08177 | AW12: =+AV12 -> 13539.08177 | AX12: =+AW12 -> 13539.08177 | AY12: 0 | AZ12: 0 | BA12: 0 | BB12: 0 | BC12: 0 | BD12: 0 | BE12: 0 | BF12: 0 | BG12: 0 | BH12: 0 | BI12: 0 | BJ12: 0
A13: Inversión | B13: =Inversión!D12+Inversión!G12 -> 169622.25 | C13: 0 | D13: 0 | E13: 0 | F13: 0 | G13: 0 | H13: 0 | I13: 0 | J13: 0 | K13: 0 | L13: 0 | M13: 0 | N13: 0 | O13: 0 | P13: 0 | Q13: 0 | R13: 0 | S13: 0 | T13: 0 | U13: 0 | V13: 0 | W13: 0 | X13: 0 | Y13: 0 | Z13: 0 | AA13: 0 | AB13: 0 | AC13: 0 | AD13: 0 | AE13: 0 | AF13: 0 | AG13: 0 | AH13: 0 | AI13: 0 | AJ13: 0 | AK13: 0 | AL13: 0 | AM13: 0 | AN13: 0 | AO13: 0 | AP13: 0 | AQ13: 0 | AR13: 0 | AS13: 0 | AT13: 0 | AU13: 0 | AV13: 0 | AW13: 0 | AX13: 0 | AY13: 0 | AZ13: 0 | BA13: 0 | BB13: 0 | BC13: 0 | BD13: 0 | BE13: 0 | BF13: 0 | BG13: 0 | BH13: 0 | BI13: 0 | BJ13: 0
A14: EGRESOS | B14: =+SUM(B11:B13) -> 179504.25 | C14: =+SUM(C11:C13) -> 0 | D14: =+SUM(D11:D13) -> 0 | E14: 0 | F14: 0 | G14: 0 | H14: 0 | I14: 0 | J14: 0 | K14: 0 | L14: 0 | M14: 0 | N14: 0 | O14: 3294 | P14: 0 | Q14: 0 | R14: 0 | S14: 0 | T14: 0 | U14: 0 | V14: 0 | W14: 0 | X14: 0 | Y14: 0 | Z14: 0 | AA14: 13539.08177 | AB14: 13539.08177 | AC14: 13539.08177 | AD14: 13539.08177 | AE14: 13539.08177 | AF14: 13539.08177 | AG14: 13539.08177 | AH14: 13539.08177 | AI14: 13539.08177 | AJ14: 13539.08177 | AK14: 13539.08177 | AL14: 13539.08177 | AM14: 13539.08177 | AN14: 13539.08177 | AO14: 13539.08177 | AP14: 13539.08177 | AQ14: 13539.08177 | AR14: 13539.08177 | AS14: 13539.08177 | AT14: 13539.08177 | AU14: 13539.08177 | AV14: 13539.08177 | AW14: 13539.08177 | AX14: 13539.08177 | AY14: 0 | AZ14: 0 | BA14: 0 | BB14: 0 | BC14: 0 | BD14: 0 | BE14: 0 | BF14: 0 | BG14: 0 | BH14: 0 | BI14: 0 | BJ14: 0
A16: FCFF | B16: =+B10-B14 -> 460495.75 | C16: =+C10-C14 -> -48845.45583 | D16: =+D10-D14 -> -48566.79099 | E16: -48249.46859 | F16: -48131.89189 | G16: -48006.27648 | H16: -47864.84006 | I16: 487296.0484 | J16: -47528.53926 | K16: -47332.20564 | L16: -47111.05963 | M16: -46863.63199 | N16: -47493.79945 | O16: -72850.73174 | P16: -68295.32209 | Q16: 465110.2223 | R16: =+R10-R14 -> -65357.72797 | S16: -63683.67146 | T16: -61850.95656 | U16: -59851.91856 | V16: -57639.42857 | W16: -55199.96691 | X16: -52537.07556 | Y16: -49629.9622 | Z16: -47368.07727 | AA16: -62850.35513 | AB16: -53412.3531 | AC16: -43041.94784 | AD16: -32000.07486 | AE16: -20305.7276 | AF16: =+AF10-AF14 -> -8771.566072 | AG16: 2350.633131 | AH16: 14118.59695 | AI16: 26567.38143 | AJ16: 39731.63126 | AK16: 53659.06504 | AL16: 69918.73901 | AM16: 90081.12598 | AN16: 112020.2195 | AO16: 134966.0421 | AP16: 158561.9315 | AQ16: =+AQ10-AQ14 -> 182736.204 | AR16: 207480.5053 | AS16: 232805.6143 | AT16: 258725.579 | AU16: 285256.2635 | AV16: 312413.532 | AW16: 340207.8594 | AX16: -439126.3573 | AY16: 424691.8416 | AZ16: 462034.6771 | BA16: 499841.1589 | BB16: 537453.7431 | BC16: 574710.5111 | BD16: 611572.7106 | BE16: 648031.5182 | BF16: 684089.8327 | BG16: 719753.8852 | BH16: 755022.6286 | BI16: 789904.4522 | BJ16: 25023.16868
A17: Flujo Efectivo | B17: =+B16 -> 460495.75 | C17: =+C16+B17 -> 411650.2942 | D17: =+D16+C17 -> 363083.5032 | E17: 314834.0346 | F17: 266702.1427 | G17: 218695.8662 | H17: 170831.0261 | I17: 658127.0745 | J17: 610598.5352 | K17: 563266.3296 | L17: 516155.27 | M17: 469291.638 | N17: 421797.8385 | O17: 348947.1068 | P17: 280651.7847 | Q17: 745762.007 | R17: 680404.2791 | S17: 616720.6076 | T17: 554869.651 | U17: 495017.7325 | V17: 437378.3039 | W17: 382178.337 | X17: 329641.2614 | Y17: 280011.2992 | Z17: 232643.222 | AA17: 169792.8668 | AB17: 116380.5137 | AC17: 73338.56588 | AD17: 41338.49102 | AE17: =+AE16+AD17 -> 21032.76342 | AF17: =+AF16+AE17 -> 12261.19735 | AG17: =+AG16+AF17 -> 14611.83048 | AH17: =+AH16+AG17 -> 28730.42743 | AI17: 55297.80885 | AJ17: 95029.44011 | AK17: 148688.5052 | AL17: 218607.2442 | AM17: 308688.3701 | AN17: 420708.5896 | AO17: 555674.6317 | AP17: 714236.5633 | AQ17: 896972.7673 | AR17: 1104453.273 | AS17: 1337258.887 | AT17: 1595984.466 | AU17: 1881240.729 | AV17: 2193654.261 | AW17: 2533862.121 | AX17: 2094735.764 | AY17: 2519427.605 | AZ17: 2981462.282 | BA17: 3481303.441 | BB17: 4018757.184 | BC17: 4593467.695 | BD17: 5205040.406 | BE17: 5853071.924 | BF17: 6537161.757 | BG17: 7256915.642 | BH17: 8011938.271 | BI17: =+BI16+BH17 -> 8801842.723 | BJ17: =+BJ16+BI17 -> 8826865.892
A19: VAN | B19: =+NPV(B20,C16:BJ16) -> 259784.0205
A20: Tasa de descuento | B20: 0.065
A21: TIR | B21: =+IRR(C16:BJ16) -> 0.1010140163
A22: Proyecto Viable | B22: =+IF(B21>B20,"VIABLE","NO VIABLE") -> VIABLE

Sheet ER Anual
A4: Año | B4: 1 | C4: 2 | D4: 3 | E4: 4 | F4: 5
A5: Ventas | B5: =SUM('ER Mensual'!B6:N6) -> 28830.40498 | C5: =SUM('ER Mensual'!O6:Z6) -> 237410.939 | D5: =SUM('ER Mensual'!AA6:AL6) -> 1440226.509 | E5: =SUM('ER Mensual'!AM6:AX6) -> 4829390.873 | F5: =SUM('ER Mensual'!AY6:BJ6) -> 10541518.31
A6: Membresía Free | B6: =SUM('ER Mensual'!B7:N7) -> 0 | C6: =SUM('ER Mensual'!O7:Z7) -> 0 | D6: =SUM('ER Mensual'!AA7:AL7) -> 0 | E6: =SUM('ER Mensual'!AM7:AX7) -> 0 | F6: =SUM('ER Mensual'!AY7:BJ7) -> 0
A7: Membresía Premium | B7: =SUM('ER Mensual'!B8:N8) -> 28732.04 | C7: =SUM('ER Mensual'!O8:Z8) -> 232184.73 | D7: =SUM('ER Mensual'!AA8:AL8) -> 1382059.67 | E7: =SUM('ER Mensual'!AM8:AX8) -> 4548265.75 | F7: =SUM('ER Mensual'!AY8:BJ8) -> 9741725.82
A8: Costos de ventas | B8: =SUM('ER Mensual'!B9:N9) -> -3741.809833 | C8: =SUM('ER Mensual'!O9:Z9) -> -16017.71811 | D8: =SUM('ER Mensual'!AA9:AL9) -> -59200.729 | E8: =SUM('ER Mensual'!AM9:AX9) -> -150558.5115 | F8: =SUM('ER Mensual'!AY9:BJ9) -> -279250.2188
A9: Total Ingresos | B9: =SUM('ER Mensual'!B10:N10) -> 28830.40498 | C9: =SUM('ER Mensual'!O10:Z10) -> 237410.939 | D9: =SUM('ER Mensual'!AA10:AL10) -> 1440226.509 | E9: =SUM('ER Mensual'!AM10:AX10) -> 4829390.873 | F9: =SUM('ER Mensual'!AY10:BJ10) -> 10541518.31
A10: Contribución Marginal | B10: =SUM('ER Mensual'!B11:N11) -> 0.005739740221 | C10: =SUM('ER Mensual'!O11:Z11) -> 0.03002399038 | D10: =SUM('ER Mensual'!AA11:AL11) -> 0.1446905437 | E10: =SUM('ER Mensual'!AM11:AX11) -> 0.4367185228 | F10: =SUM('ER Mensual'!AY11:BJ11) -> 0.916949232
A11: Utilidad Bruta | B11: =SUM('ER Mensual'!B12:N12) -> 25088.59515 | C11: =SUM('ER Mensual'!O12:Z12) -> 221393.2209 | D11: =SUM('ER Mensual'!AA12:AL12) -> 1381025.78 | E11: =SUM('ER Mensual'!AM12:AX12) -> 4678832.362 | F11: =SUM('ER Mensual'!AY12:BJ12) -> 10262268.09
A12: OPEX | B12: =SUM('ER Mensual'!B13:N13) -> -606810.1066 | C12: =SUM('ER Mensual'!O13:Z13) -> -937277.4375 | D12: =SUM('ER Mensual'!AA13:AL13) -> -1179025.544 | E12: =SUM('ER Mensual'!AM13:AX13) -> -1319682.431 | F12: =SUM('ER Mensual'!AY13:BJ13) -> -1381315.069
A13: EBITDA | B13: =SUM('ER Mensual'!B27:N27) -> -581721.5115 | C13: =SUM('ER Mensual'!O27:Z27) -> -715884.2166 | D13: =SUM('ER Mensual'!AA27:AL27) -> 202000.2364 | E13: =SUM('ER Mensual'!AM27:AX27) -> 3359149.93 | F13: =SUM('ER Mensual'!AY27:BJ27) -> 8880953.021
A14: Amortizaciones | B14: =SUM('ER Mensual'!B28:N28) -> -1976.4 | C14: =SUM('ER Mensual'!O28:Z28) -> -1976.4 | D14: =SUM('ER Mensual'!AA28:AL28) -> -1976.4 | E14: =SUM('ER Mensual'!AM28:AX28) -> -1976.4 | F14: =SUM('ER Mensual'!AY28:BJ28) -> -1976.4
A15: EBIT | B15: =SUM('ER Mensual'!B29:N29) -> -583697.9115 | C15: =SUM('ER Mensual'!O29:Z29) -> -717860.6166 | D15: =SUM('ER Mensual'!AA29:AL29) -> 200023.8364 | E15: =SUM('ER Mensual'!AM29:AX29) -> 3357173.53 | F15: =SUM('ER Mensual'!AY29:BJ29) -> 8878976.621
A16: EBT | B16: =SUM('ER Mensual'!B32:N32) -> -583697.9115 | C16: =SUM('ER Mensual'!O32:Z32) -> -717860.6166 | D16: =SUM('ER Mensual'!AA32:AL32) -> 200023.8364 | E16: =SUM('ER Mensual'!AM32:AX32) -> 3357173.53 | F16: =SUM('ER Mensual'!AY32:BJ32) -> 8878976.621
A17: Income Tax | B17: =SUM('ER Mensual'!B33:N33) -> 0 | C17: =SUM('ER Mensual'!O33:Z33) -> 0 | D17: =SUM('ER Mensual'!AA33:AL33) -> -51590.83291 | E17: =SUM('ER Mensual'!AM33:AX33) -> -503576.0295 | F17: =SUM('ER Mensual'!AY33:BJ33) -> -1331846.493
A18: NOPAT | B18: =SUM('ER Mensual'!B34:N34) -> -583697.9115 | C18: =SUM('ER Mensual'!O34:Z34) -> -717860.6166 | D18: =SUM('ER Mensual'!AA34:AL34) -> 148433.0035 | E18: =SUM('ER Mensual'!AM34:AX34) -> 2853597.501 | F18: =SUM('ER Mensual'!AY34:BJ34) -> 7547130.128

Sheet ER Mensual
A4: Inflación | N4: =+'Inflación USD'!$B$7 -> 0.0194 | Z4: =+'Inflación USD'!$B$7 -> 0.0194 | AL4: =+'Inflación USD'!$B$7 -> 0.0194 | AX4: =+'Inflación USD'!$B$7 -> 0.0194 | BJ4: =+'Inflación USD'!$B$7 -> 0.0194
A5: Meses | B5: 0 | C5: 1 | D5: 2 | E5: 3 | F5: 4 | G5: 5 | H5: 6 | I5: 7 | J5: 8 | K5: 9 | L5: 10 | M5: 11 | N5: 12 | O5: 13 | P5: 14 | Q5: 15 | R5: 16 | S5: 17 | T5: 18 | U5: 19 | V5: 20 | W5: 21 | X5: 22 | Y5: 23 | Z5: 24 | AA5: 25 | AB5: 26 | AC5: 27 | AD5: 28 | AE5: 29 | AF5: 30 | AG5: 31 | AH5: 32 | AI5: 33 | AJ5: 34 | AK5: 35 | AL5: 36 | AM5: 37 | AN5: 38 | AO5: 39 | AP5: 40 | AQ5: 41 | AR5: 42 | AS5: 43 | AT5: 44 | AU5: 45 | AV5: 46 | AW5: 47 | AX5: 48 | AY5: 49 | AZ5: 50 | BA5: 51 | BB5: 52 | BC5: 53 | BD5: 54 | BE5: 55 | BF5: 56 | BG5: 57 | BH5: 58 | BI5: 59 | BJ5: 60
A6: Ventas | B6: 0 | C6: =+SUM(C7:C8) -> 0 | D6: =+SUM(D7:D8) -> 818.09 | E6: =+SUM(E7:E8) -> 1087.79 | F6: 1357.49 | G6: 1663.15 | H6: 2004.77 | I6: 2391.34 | J6: 2813.87 | K6: 3290.34 | L6: 3820.75 | M6: 4414.09 | N6: =+SUM(N7:N8)*(1+$N$4) -> 5168.724984 | O6: =+SUM(O7:O8)*(1+$N$4) -> 6671.687568 | P6: =+SUM(P7:P8)*(1+$N$4) -> 8385.43149 | Q6: 10264.13472 | R6: 12307.79726 | S6: 14543.91232 | T6: 16990.80872 | U6: 19657.65087 | V6: 22581.09638 | W6: 25770.30967 | X6: 29252.78395 | Y6: 33056.01244 | Z6: =+SUM(Z7:Z8)*(1+$Z$4)^2 -> 37929.31363 | AA6: =+SUM(AA7:AA8)*(1+$Z$4)^2 -> 47159.40276 | AB6: 57800.16341 | AC6: 69225.66848 | AD6: 81342.49601 | AE6: 94169.3304 | AF6: 107743.5404 | AG6: 122093.1527 | AH6: 137283.5625 | AI6: 153352.1387 | AJ6: 170345.5923 | AK6: 188329.3186 | AL6: =+SUM(AL7:AL8)*(1+$AL$4)^3 -> 211382.1426 | AM6: =+SUM(AM7:AM8)*(1+$AL$4)^3 -> 236885.899 | AN6: 264256.2485 | AO6: 292540.8477 | AP6: 321558.7513 | AQ6: 351271.8656 | AR6: 381680.1906 | AS6: 412802.7731 | AT6: 444658.6601 | AU6: 477266.8984 | AV6: 510646.5348 | AW6: 544807.0928 | AX6: =+SUM(AX7:AX8)*(1+$AX$4)^4 -> 591015.111 | AY6: =+SUM(AY7:AY8)*(1+$AX$4)^4 -> 634468.9636 | AZ6: 679563.5001 | BA6: 724706.5775 | BB6: 769490.4519 | BC6: 813818.0415 | BD6: 857669.9298 | BE6: 901036.4087 | BF6: 943927.1863 | BG6: 986351.9709 | BH6: 1028301.054 | BI6: 1069793.853 | BJ6: =+SUM(BJ7:BJ8)*(1+$BJ$4)^5 -> 1132390.372 | BK6: =SUM(B6:BJ6) -> 17077377.03
A7: Membresía Free | B7: 0 | C7: =+Ventas!B23*Ventas!$B$5 -> 0 | D7: =+Ventas!C23*Ventas!$B$5 -> 0 | E7: =+Ventas!D23*Ventas!$B$5 -> 0 | F7: =+Ventas!E23*Ventas!$B$5 -> 0 | G7: =+Ventas!F23*Ventas!$B$5 -> 0 | H7: =+Ventas!G23*Ventas!$B$5 -> 0 | I7: =+Ventas!H23*Ventas!$B$5 -> 0 | J7: =+Ventas!I23*Ventas!$B$5 -> 0 | K7: =+Ventas!J23*Ventas!$B$5 -> 0 | L7: =+Ventas!K23*Ventas!$B$5 -> 0 | M7: =+Ventas!L23*Ventas!$B$5 -> 0 | N7: =+Ventas!M23*Ventas!$B$5 -> 0 | O7: =+Ventas!N23*Ventas!$B$5 -> 0 | P7: =+Ventas!O23*Ventas!$B$5 -> 0 | Q7: =+Ventas!P23*Ventas!$B$5 -> 0 | R7: =+Ventas!Q23*Ventas!$B$5 -> 0 | S7: =+Ventas!R23*Ventas!$B$5 -> 0 | T7: =+Ventas!S23*Ventas!$B$5 -> 0 | U7: =+Ventas!T23*Ventas!$B$5 -> 0 | V7: =+Ventas!U23*Ventas!$B$5 -> 0 | W7: =+Ventas!V23*Ventas!$B$5 -> 0 | X7: =+Ventas!W23*Ventas!$B$5 -> 0 | Y7: =+Ventas!X23*Ventas!$B$5 -> 0 | Z7: =+Ventas!Y23*Ventas!$B$5 -> 0 | AA7: =+Ventas!Z23*Ventas!$B$5 -> 0 | AB7: =+Ventas!AA23*Ventas!$B$5 -> 0 | AC7: =+Ventas!AB23*Ventas!$B$5 -> 0 | AD7: =+Ventas!AC23*Ventas!$B$5 -> 0 | AE7: =+Ventas!AD23*Ventas!$B$5 -> 0 | AF7: =+Ventas!AE23*Ventas!$B$5 -> 0 | AG7: =+Ventas!AF23*Ventas!$B$5 -> 0 | AH7: =+Ventas!AG23*Ventas!$B$5 -> 0 | AI7: =+Ventas!AH23*Ventas!$B$5 -> 0 | AJ7: =+Ventas!AI23*Ventas!$B$5 -> 0 | AK7: =+Ventas!AJ23*Ventas!$B$5 -> 0 | AL7: =+Ventas!AK23*Ventas!$B$5 -> 0 | AM7: =+Ventas!AL23*Ventas!$B$5 -> 0 | AN7: =+Ventas!AM23*Ventas!$B$5 -> 0 | AO7: =+Ventas!AN23*Ventas!$B$5 -> 0 | AP7: =+Ventas!AO23*Ventas!$B$5 -> 0 | AQ7: =+Ventas!AP23*Ventas!$B$5 -> 0 | AR7: =+Ventas!AQ23*Ventas!$B$5 -> 0 | AS7: =+Ventas!AR23*Ventas!$B$5 -> 0 | AT7: =+Ventas!AS23*Ventas!$B$5 -> 0 | AU7: =+Ventas!AT23*Ventas!$B$5 -> 0 | AV7: =+Ventas!AU23*Ventas!$B$5 -> 0 | AW7: =+Ventas!AV23*Ventas!$B$5 -> 0 | AX7: =+Ventas!AW23*Ventas!$B$5 -> 0 | AY7: =+Ventas!AX23*Ventas!$B$5 -> 0 | AZ7: =+Ventas!AY23*Ventas!$B$5 -> 0 | BA7: =+Ventas!AZ23*Ventas!$B$5 -> 0 | BB7: =+Ventas!BA23*Ventas!$B$5 -> 0 | BC7: =+Ventas!BB23*Ventas!$B$5 -> 0 | BD7: =+Ventas!BC23*Ventas!$B$5 -> 0 | BE7: =+Ventas!BD23*Ventas!$B$5 -> 0 | BF7: =+Ventas!BE23*Ventas!$B$5 -> 0 | BG7: =+Ventas!BF23*Ventas!$B$5 -> 0 | BH7: =+Ventas!BG23*Ventas!$B$5 -> 0 | BI7: =+Ventas!BH23*Ventas!$B$5 -> 0 | BJ7: =+Ventas!BI23*Ventas!$B$5 -> 0 | BK7: 0
A8: Membresía Premium | B8: 0 | C8: =+Ventas!B24*Ventas!$B$6 -> 0 | D8: =+Ventas!C21*Ventas!$B$6 -> 818.09 | E8: =+Ventas!D21*Ventas!$B$6 -> 1087.79 | F8: =+Ventas!E21*Ventas!$B$6 -> 1357.49 | G8: =+Ventas!F21*Ventas!$B$6 -> 1663.15 | H8: =+Ventas!G21*Ventas!$B$6 -> 2004.77 | I8: =+Ventas!H21*Ventas!$B$6 -> 2391.34 | J8: =+Ventas!I21*Ventas!$B$6 -> 2813.87 | K8: =+Ventas!J21*Ventas!$B$6 -> 3290.34 | L8: =+Ventas!K21*Ventas!$B$6 -> 3820.75 | M8: =+Ventas!L21*Ventas!$B$6 -> 4414.09 | N8: =+Ventas!M21*Ventas!$B$6 -> 5070.36 | O8: =+Ventas!N21*Ventas!$B$6 -> 6544.72 | P8: =+Ventas!O21*Ventas!$B$6 -> 8225.85 | Q8: =+Ventas!P21*Ventas!$B$6 -> 10068.8 | R8: =+Ventas!Q21*Ventas!$B$6 -> 12073.57 | S8: =+Ventas!R21*Ventas!$B$6 -> 14267.13 | T8: =+Ventas!S21*Ventas!$B$6 -> 16667.46 | U8: =+Ventas!T21*Ventas!$B$6 -> 19283.55 | V8: =+Ventas!U21*Ventas!$B$6 -> 22151.36 | W8: =+Ventas!V21*Ventas!$B$6 -> 25279.88 | X8: =+Ventas!W21*Ventas!$B$6 -> 28696.08 | Y8: =+Ventas!X21*Ventas!$B$6 -> 32426.93 | Z8: =+Ventas!Y21*Ventas!$B$6 -> 36499.4 | AA8: =+Ventas!Z21*Ventas!$B$6 -> 45381.52 | AB8: =+Ventas!AA21*Ventas!$B$6 -> 55621.13 | AC8: =+Ventas!AB21*Ventas!$B$6 -> 66615.9 | AD8: =+Ventas!AC21*Ventas!$B$6 -> 78275.93 | AE8: =+Ventas!AD21*Ventas!$B$6 -> 90619.2 | AF8: =+Ventas!AE21*Ventas!$B$6 -> 103681.67 | AG8: =+Ventas!AF21*Ventas!$B$6 -> 117490.31 | AH8: =+Ventas!AG21*Ventas!$B$6 -> 132108.05 | AI8: =+Ventas!AH21*Ventas!$B$6 -> 147570.85 | AJ8: =+Ventas!AI21*Ventas!$B$6 -> 163923.66 | AK8: =+Ventas!AJ21*Ventas!$B$6 -> 181229.41 | AL8: =+Ventas!AK21*Ventas!$B$6 -> 199542.04 | AM8: =+Ventas!AL21*Ventas!$B$6 -> 223617.26 | AN8: =+Ventas!AM21*Ventas!$B$6 -> 249454.52 | AO8: =+Ventas!AN21*Ventas!$B$6 -> 276154.82 | AP8: =+Ventas!AO21*Ventas!$B$6 -> 303547.35 | AQ8: =+Ventas!AP21*Ventas!$B$6 -> 331596.15 | AR8: =+Ventas!AQ21*Ventas!$B$6 -> 360301.22 | AS8: =+Ventas!AR21*Ventas!$B$6 -> 389680.54 | AT8: =+Ventas!AS21*Ventas!$B$6 -> 419752.09 | AU8: =+Ventas!AT21*Ventas!$B$6 -> 450533.85 | AV8: =+Ventas!AU21*Ventas!$B$6 -> 482043.8 | AW8: =+Ventas!AV21*Ventas!$B$6 -> 514290.93 | AX8: =+Ventas!AW21*Ventas!$B$6 -> 547293.22 | AY8: =+Ventas!AX21*Ventas!$B$6 -> 587532.46 | AZ8: =+Ventas!AY21*Ventas!$B$6 -> 629291.01 | BA8: =+Ventas!AZ21*Ventas!$B$6 -> 671094.51 | BB8: =+Ventas!BA21*Ventas!$B$6 -> 712565.38 | BC8: =+Ventas!BB21*Ventas!$B$6 -> 753613.72 | BD8: =+Ventas!BC21*Ventas!$B$6 -> 794221.55 | BE8: =+Ventas!BD21*Ventas!$B$6 -> 834379.88 | BF8: =+Ventas!BE21*Ventas!$B$6 -> 874097.7 | BG8: =+Ventas!BF21*Ventas!$B$6 -> 913384 | BH8: =+Ventas!BG21*Ventas!$B$6 -> 952229.79 | BI8: =+Ventas!BH21*Ventas!$B$6 -> 990653.05 | BJ8: =+Ventas!BI21*Ventas!$B$6 -> 1028662.77 | BK8: 15932968.01
A9: Costos de ventas | B9: 0 | C9: 0 | D9: =-(D6*Egresos!$B$6+(Egresos!$B$7*SUM(Ventas!C23:C26))) -> -198.07571 | E9: =-(E6*Egresos!$B$6+(Egresos!$B$7*SUM(Ventas!D23:D26))) -> -196.36801 | F9: =-(F6*Egresos!$B$6+(Egresos!$B$7*SUM(Ventas!E23:E26))) -> -220.53231 | G9: =-(G6*Egresos!$B$6+(Egresos!$B$7*SUM(Ventas!F23:F26))) -> -248.90785 | H9: =-(H6*Egresos!$B$6+(Egresos!$B$7*SUM(Ventas!G23:G26))) -> -280.48663 | I9: =-(I6*Egresos!$B$6+(Egresos!$B$7*SUM(Ventas!H23:H26))) -> -316.11146 | J9: =-(J6*Egresos!$B$6+(Egresos!$B$7*SUM(Ventas!I23:I26))) -> -355.10753 | K9: =-(K6*Egresos!$B$6+(Egresos!$B$7*SUM(Ventas!J23:J26))) -> -399.27246 | L9: =-(L6*Egresos!$B$6+(Egresos!$B$7*SUM(Ventas!K23:K26))) -> -448.10225 | M9: =-(M6*Egresos!$B$6+(Egresos!$B$7*SUM(Ventas!L23:L26))) -> -502.71971 | N9: =-(N6*Egresos!$B$6+(Egresos!$B$7*SUM(Ventas!M23:M26)))*(1+$N$4) -> -576.1259131 | O9: =-(O6*Egresos!$B$6+(Egresos!$B$7*SUM(Ventas!N23:N26)))*(1+$N$4) -> -682.987871 | P9: =-(P6*Egresos!$B$6+(Egresos!$B$7*SUM(Ventas!O23:O26)))*(1+$N$4) -> -770.469858 | Q9: =-(Q6*Egresos!$B$6+(Egresos!$B$7*SUM(Ventas!P23:P26)))*(1+$N$4) -> -863.4303317 | R9: =-(R6*Egresos!$B$6+(Egresos!$B$7*SUM(Ventas!Q23:Q26)))*(1+$N$4) -> -964.1527484 | S9: =-(S6*Egresos!$B$6+(Egresos!$B$7*SUM(Ventas!R23:R26)))*(1+$N$4) -> -1074.653859 | T9: =-(T6*Egresos!$B$6+(Egresos!$B$7*SUM(Ventas!S23:S26)))*(1+$N$4) -> -1195.459927 | U9: =-(U6*Egresos!$B$6+(Egresos!$B$7*SUM(Ventas!T23:T26)))*(1+$N$4) -> -1326.919713 | V9: =-(V6*Egresos!$B$6+(Egresos!$B$7*SUM(Ventas!U23:U26)))*(1+$N$4) -> -1471.512903 | W9: =-(W6*Egresos!$B$6+(Egresos!$B$7*SUM(Ventas!V23:V26)))*(1+$N$4) -> -1628.789046 | X9: =-(X6*Egresos!$B$6+(Egresos!$B$7*SUM(Ventas!W23:W26)))*(1+$N$4) -> -1800.650723 | Y9: =-(Y6*Egresos!$B$6+(Egresos!$B$7*SUM(Ventas!X23:X26)))*(1+$N$4) -> -1988.486735 | Z9: =-(Z6*Egresos!$B$6+(Egresos!$B$7*SUM(Ventas!Y23:Y26)))*(1+$Z$4)^2 -> -2250.20439 | AA9: =-(AA6*Egresos!$B$6+(Egresos!$B$7*SUM(Ventas!Z23:Z26)))*(1+$Z$4)^2 -> -2726.616552 | AB9: =-(AB6*Egresos!$B$6+(Egresos!$B$7*SUM(Ventas!AA23:AA26)))*(1+$Z$4)^2 -> -3079.111878 | AC9: =-(AC6*Egresos!$B$6+(Egresos!$B$7*SUM(Ventas!AB23:AB26)))*(1+$Z$4)^2 -> -3424.464056 | AD9: =-(AD6*Egresos!$B$6+(Egresos!$B$7*SUM(Ventas!AC23:AC26)))*(1+$Z$4)^2 -> -3784.338855 | AE9: =-(AE6*Egresos!$B$6+(Egresos!$B$7*SUM(Ventas!AD23:AD26)))*(1+$Z$4)^2 -> -4164.284442 | AF9: =-(AF6*Egresos!$B$6+(Egresos!$B$7*SUM(Ventas!AE23:AE26)))*(1+$Z$4)^2 -> -4566.144322 | AG9: =-(AG6*Egresos!$B$6+(Egresos!$B$7*SUM(Ventas!AF23:AF26)))*(1+$Z$4)^2 -> -4990.355475 | AH9: =-(AH6*Egresos!$B$6+(Egresos!$B$7*SUM(Ventas!AG23:AG26)))*(1+$Z$4)^2 -> -5440.129487 | AI9: =-(AI6*Egresos!$B$6+(Egresos!$B$7*SUM(Ventas!AH23:AH26)))*(1+$Z$4)^2 -> -5915.564049 | AJ9: =-(AJ6*Egresos!$B$6+(Egresos!$B$7*SUM(Ventas!AI23:AI26)))*(1+$Z$4)^2 -> -6418.279765 | AK9: =-(AK6*Egresos!$B$6+(Egresos!$B$7*SUM(Ventas!AJ23:AJ26)))*(1+$Z$4)^2 -> -6950.673507 | AL9: =-(AL6*Egresos!$B$6+(Egresos!$B$7*SUM(Ventas!AK23:AK26)))*(1+$AL$4)^3 -> -7740.766608 | AM9: =-(AM6*Egresos!$B$6+(Egresos!$B$7*SUM(Ventas!AL23:AL26)))*(1+$AL$4)^3 -> -8582.264628 | AN9: =-(AN6*Egresos!$B$6+(Egresos!$B$7*SUM(Ventas!AM23:AM26)))*(1+$AL$4)^3 -> -9278.02473 | AO9: =-(AO6*Egresos!$B$6+(Egresos!$B$7*SUM(Ventas!AN23:AN26)))*(1+$AL$4)^3 -> -9952.143378 | AP9: =-(AP6*Egresos!$B$6+(Egresos!$B$7*SUM(Ventas!AO23:AO26)))*(1+$AL$4)^3 -> -10634.61466 | AQ9: =-(AQ6*Egresos!$B$6+(Egresos!$B$7*SUM(Ventas!AP23:AP26)))*(1+$AL$4)^3 -> -11331.19737 | AR9: =-(AR6*Egresos!$B$6+(Egresos!$B$7*SUM(Ventas!AQ23:AQ26)))*(1+$AL$4)^3 -> -12043.25593 | AS9: =-(AS6*Egresos!$B$6+(Egresos!$B$7*SUM(Ventas!AR23:AR26)))*(1+$AL$4)^3 -> -12772.00422 | AT9: =-(AT6*Egresos!$B$6+(Egresos!$B$7*SUM(Ventas!AS23:AS26)))*(1+$AL$4)^3 -> -13518.12222 | AU9: =-(AU6*Egresos!$B$6+(Egresos!$B$7*SUM(Ventas!AT23:AT26)))*(1+$AL$4)^3 -> -14281.99329 | AV9: =-(AV6*Egresos!$B$6+(Egresos!$B$7*SUM(Ventas!AU23:AU26)))*(1+$AL$4)^3 -> -15064.0008 | AW9: =-(AW6*Egresos!$B$6+(Egresos!$B$7*SUM(Ventas!AV23:AV26)))*(1+$AL$4)^3 -> -15863.92117 | AX9: =-(AX6*Egresos!$B$6+(Egresos!$B$7*SUM(Ventas!AW23:AW26)))*(1+$AX$4)^4 -> -17236.96905 | AY9: =-(AY6*Egresos!$B$6+(Egresos!$B$7*SUM(Ventas!AX23:AX26)))*(1+$AX$4)^4 -> -18430.31299 | AZ9: =-(AZ6*Egresos!$B$6+(Egresos!$B$7*SUM(Ventas!AY23:AY26)))*(1+$AX$4)^4 -> -19388.39372 | BA9: =-(BA6*Egresos!$B$6+(Egresos!$B$7*SUM(Ventas!AZ23:AZ26)))*(1+$AX$4)^4 -> -20278.34896 | BB9: =-(BB6*Egresos!$B$6+(Egresos!$B$7*SUM(Ventas!BA23:BA26)))*(1+$AX$4)^4 -> -21143.75959 | BC9: =-(BC6*Egresos!$B$6+(Egresos!$B$7*SUM(Ventas!BB23:BB26)))*(1+$AX$4)^4 -> -21995.87744 | BD9: =-(BD6*Egresos!$B$6+(Egresos!$B$7*SUM(Ventas!BC23:BC26)))*(1+$AX$4)^4 -> -22837.99303 | BE9: =-(BE6*Egresos!$B$6+(Egresos!$B$7*SUM(Ventas!BD23:BD26)))*(1+$AX$4)^4 -> -23670.0281 | BF9: =-(BF6*Egresos!$B$6+(Egresos!$B$7*SUM(Ventas!BE23:BE26)))*(1+$AX$4)^4 -> -24493.02848 | BG9: =-(BG6*Egresos!$B$6+(Egresos!$B$7*SUM(Ventas!BF23:BF26)))*(1+$AX$4)^4 -> -25307.49574 | BH9: =-(BH6*Egresos!$B$6+(Egresos!$B$7*SUM(Ventas!BG23:BG26)))*(1+$AX$4)^4 -> -26112.08167 | BI9: =-(BI6*Egresos!$B$6+(Egresos!$B$7*SUM(Ventas!BH23:BH26)))*(1+$AX$4)^4 -> -26908.45462 | BJ9: =-(BJ6*Egresos!$B$6+(Egresos!$B$7*SUM(Ventas!BI23:BI26)))*(1+$BJ$4)^5 -> -28684.44449 | BK9: -508768.9872
A10: Total Ingresos | B10: =B6 -> 0 | C10: =C6 -> 0 | D10: 818.09 | E10: 1087.79 | F10: 1357.49 | G10: 1663.15 | H10: 2004.77 | I10: 2391.34 | J10: 2813.87 | K10: 3290.34 | L10: 3820.75 | M10: 4414.09 | N10: 5168.724984 | O10: 6671.687568 | P10: 8385.43149 | Q10: 10264.13472 | R10: 12307.79726 | S10: 14543.91232 | T10: 16990.80872 | U10: 19657.65087 | V10: 22581.09638 | W10: 25770.30967 | X10: 29252.78395 | Y10: 33056.01244 | Z10: 37929.31363 | AA10: 47159.40276 | AB10: 57800.16341 | AC10: 69225.66848 | AD10: 81342.49601 | AE10: 94169.3304 | AF10: 107743.5404 | AG10: 122093.1527 | AH10: 137283.5625 | AI10: 153352.1387 | AJ10: 170345.5923 | AK10: 188329.3186 | AL10: 211382.1426 | AM10: 236885.899 | AN10: 264256.2485 | AO10: 292540.8477 | AP10: 321558.7513 | AQ10: 351271.8656 | AR10: 381680.1906 | AS10: 412802.7731 | AT10: 444658.6601 | AU10: 477266.8984 | AV10: 510646.5348 | AW10: 544807.0928 | AX10: 591015.111 | AY10: 634468.9636 | AZ10: 679563.5001 | BA10: 724706.5775 | BB10: 769490.4519 | BC10: 813818.0415 | BD10: 857669.9298 | BE10: 901036.4087 | BF10: 943927.1863 | BG10: 986351.9709 | BH10: 1028301.054 | BI10: 1069793.853 | BJ10: 1132390.372 | BK10: 17077377.03 | BL10: =BK6 -> 17077377.03
A11: Contribución Marginal | B11: =+B10/(-B13)/100 -> 0 | C11: 0 | D11: 0.0001668818577 | E11: 0.0002221058819 | F11: 0.0002764511781 | G11: 0.0003376555392 | H11: 0.0004056233459 | I11: 0.0004819842899 | J11: 0.0005647778121 | K11: 0.0006572979993 | L11: 0.0007593055187 | M11: 0.000872172226 | N11: 0.0009954845722 | O11: 0.0008850653795 | P11: 0.001107052197 | Q11: 0.001348312548 | R11: 0.001608091502 | S11: 0.001889108548 | T11: 0.002192882897 | U11: 0.002519631821 | V11: 0.002873486552 | W11: 0.003254780912 | X11: 0.003664636889 | Y11: 0.004104665106 | Z11: 0.00457627603 | AA11: 0.005039509031 | AB11: 0.006120977895 | AC11: 0.00727623781 | AD11: 0.008486042725 | AE11: 0.009747672364 | AF11: 0.01106152743 | AG11: 0.01242750308 | AH11: 0.01384740412 | AI11: 0.01532176132 | AJ11: 0.01685068699 | AK11: 0.01843522835 | AL11: 0.02007599259 | AM11: 0.02229875161 | AN11: 0.0246745466 | AO11: 0.0271595173 | AP11: 0.02969486665 | AQ11: 0.03226707578 | AR11: 0.03487281971 | AS11: 0.03751089066 | AT11: 0.04018079615 | AU11: 0.04288256029 | AV11: 0.04561617919 | AW11: 0.04838188284 | AX11: 0.05117863604 | AY11: 0.0545843189 | AZ11: 0.05836158919 | BA11: 0.06235906853 | BB11: 0.06640208865 | BC11: 0.0704436941 | BD11: 0.07446995307 | BE11: 0.0784795216 | BF11: 0.0824693856 | BG11: 0.08643831943 | BH11: 0.09039027374 | BI11: 0.09432033068 | BJ11: =+BJ10/(-BJ13)/100 -> 0.09823068856
A12: Utilidad Bruta | B12: =+B6+B9 -> 0 | C12: =+C10+C9 -> 0 | D12: 620.01429 | E12: 891.42199 | F12: 1136.95769 | G12: 1414.24215 | H12: 1724.28337 | I12: 2075.22854 | J12: 2458.76247 | K12: 2891.06754 | L12: 3372.64775 | M12: 3911.37029 | N12: 4592.599071 | O12: 5988.699697 | P12: 7614.961632 | Q12: 9400.704388 | R12: 11343.64451 | S12: 13469.25846 | T12: 15795.3488 | U12: 18330.73116 | V12: 21109.58348 | W12: 24141.52063 | X12: 27452.13323 | Y12: 31067.52571 | Z12: 35679.10924 | AA12: 44432.78621 | AB12: 54721.05153 | AC12: 65801.20442 | AD12: 77558.15716 | AE12: 90005.04596 | AF12: 103177.3961 | AG12: 117102.7972 | AH12: 131843.433 | AI12: =+AI10+AI9 -> 147436.5747 | AJ12: 163927.3126 | AK12: 181378.6451 | AL12: 203641.376 | AM12: 228303.6344 | AN12: 254978.2238 | AO12: 282588.7043 | AP12: 310924.1367 | AQ12: 339940.6682 | AR12: 369636.9347 | AS12: 400030.7689 | AT12: 431140.5379 | AU12: 462984.9051 | AV12: 495582.534 | AW12: 528943.1716 | AX12: 573778.142 | AY12: 616038.6506 | AZ12: 660175.1064 | BA12: 704428.2285 | BB12: 748346.6923 | BC12: 791822.164 | BD12: 834831.9368 | BE12: 877366.3806 | BF12: 919434.1578 | BG12: 961044.4751 | BH12: 1002188.973 | BI12: 1042885.398 | BJ12: 1103705.927 | BK12: =SUM(B12:BJ12) -> 16568608.05 | BL12: =+BL10+BK9 -> 16568608.05
A13: OPEX | B13: =+SUM(B14:B26) -> -10000 | C13: -48680.75583 | D13: -49022.10528 | E13: -48976.19058 | F13: -49104.14958 | G13: -49255.81863 | H13: -49424.42343 | I13: -49614.48018 | J13: -49822.60173 | K13: -50058.57318 | L13: -50319.00738 | M13: -50610.30228 | N13: =+SUM(N14:N26)*(1+$N$4) -> -51921.69852 | O13: =+SUM(O14:O26)*(1+$N$4) -> -75380.73144 | P13: -75745.58372 | Q13: -76125.78205 | R13: -76536.67248 | S13: -76988.22993 | T13: -77481.60536 | U13: -78017.94972 | V13: -78584.31205 | W13: -79176.78753 | X13: -79824.50879 | Y13: -80532.78791 | Z13: =+SUM(Z14:Z26)*(1+$Z$4)^2 -> -82882.48652 | AA13: =+SUM(AA14:AA26)*(1+$Z$4)^2 -> -93579.35957 | AB13: -94429.62286 | AC13: -95139.37049 | AD13: -95854.45024 | AE13: -96606.99179 | AF13: -97403.85411 | AG13: -98244.31496 | AH13: -99140.28748 | AI13: -100087.8003 | AJ13: -101091.1855 | AK13: -102157.3018 | AL13: =+SUM(AL14:AL26)*(1+$AL$4)^3 -> -105291.0045 | AM13: =+SUM(AM14:AM26)*(1+$AL$4)^3 -> -106232.8076 | AN13: -107096.6988 | AO13: -107712.0939 | AP13: -108287.6563 | AQ13: -108863.8673 | AR13: -109449.191 | AS13: -110048.7794 | AT13: -110664.4723 | AU13: -111296.2694 | AV13: =+SUM(AV14:AV26)*(1+$AL$4)^3 -> -111944.1706 | AW13: =+SUM(AW14:AW26)*(1+$AL$4)^3 -> -112605.5996 | AX13: =+SUM(AX14:AX26)*(1+$AX$4)^4 -> -115480.825 | AY13: =+SUM(AY14:AY26)*(1+$AX$4)^4 -> -116236.49 | AZ13: -116440.198 | BA13: -116215.1063 | BB13: -115883.4711 | BC13: -115527.4509 | BD13: -115169.9302 | BE13: -114811.6592 | BF13: -114457.89 | BG13: -114110.4984 | BH13: -113762.3565 | BI13: -113421.3425 | BJ13: =+SUM(BJ14:BJ26)*(1+$BJ$4)^5 -> -115278.676 | BK13: =SUM(B13:BJ13) -> -5424110.588
A14: Dominio Landing Page | B14: 0 | C14: =-Egresos!$B$21 -> -18 | D14: =-Egresos!$B$21 -> -18 | E14: =-Egresos!$B$21 -> -18 | F14: =-Egresos!$B$21 -> -18 | G14: =-Egresos!$B$21 -> -18 | H14: =-Egresos!$B$21 -> -18 | I14: =-Egresos!$B$21 -> -18 | J14: =-Egresos!$B$21 -> -18 | K14: =-Egresos!$B$21 -> -18 | L14: =-Egresos!$B$21 -> -18 | M14: =-Egresos!$B$21 -> -18 | N14: =-Egresos!$B$21 -> -18 | O14: =-Egresos!$B$21 -> -18 | P14: =-Egresos!$B$21 -> -18 | Q14: =-Egresos!$B$21 -> -18 | R14: =-Egresos!$B$21 -> -18 | S14: =-Egresos!$B$21 -> -18 | T14: =-Egresos!$B$21 -> -18 | U14: =-Egresos!$B$21 -> -18 | V14: =-Egresos!$B$21 -> -18 | W14: =-Egresos!$B$21 -> -18 | X14: =-Egresos!$B$21 -> -18 | Y14: =-Egresos!$B$21 -> -18 | Z14: =-Egresos!$B$21 -> -18 | AA14: =-Egresos!$B$21 -> -18 | AB14: =-Egresos!$B$21 -> -18 | AC14: =-Egresos!$B$21 -> -18 | AD14: =-Egresos!$B$21 -> -18 | AE14: =-Egresos!$B$21 -> -18 | AF14: =-Egresos!$B$21 -> -18 | AG14: =-Egresos!$B$21 -> -18 | AH14: =-Egresos!$B$21 -> -18 | AI14: =-Egresos!$B$21 -> -18 | AJ14: =-Egresos!$B$21 -> -18 | AK14: =-Egresos!$B$21 -> -18 | AL14: =-Egresos!$B$21 -> -18 | AM14: =-Egresos!$B$21 -> -18 | AN14: =-Egresos!$B$21 -> -18 | AO14: =-Egresos!$B$21 -> -18 | AP14: =-Egresos!$B$21 -> -18 | AQ14: =-Egresos!$B$21 -> -18 | AR14: =-Egresos!$B$21 -> -18 | AS14: =-Egresos!$B$21 -> -18 | AT14: =-Egresos!$B$21 -> -18 | AU14: =-Egresos!$B$21 -> -18 | AV14: =-Egresos!$B$21 -> -18 | AW14: =-Egresos!$B$21 -> -18 | AX14: =-Egresos!$B$21 -> -18 | AY14: =-Egresos!$B$21 -> -18 | AZ14: =-Egresos!$B$21 -> -18 | BA14: =-Egresos!$B$21 -> -18 | BB14: =-Egresos!$B$21 -> -18 | BC14: =-Egresos!$B$21 -> -18 | BD14: =-Egresos!$B$21 -> -18 | BE14: =-Egresos!$B$21 -> -18 | BF14: =-Egresos!$B$21 -> -18 | BG14: =-Egresos!$B$21 -> -18 | BH14: =-Egresos!$B$21 -> -18 | BI14: =-Egresos!$B$21 -> -18 | BJ14: =-Egresos!$B$21 -> -18
A15: Sueldos Empleados | B15: 0 | C15: =-Egresos!$D$11 -> -32000 | D15: =+C15 -> -32000 | E15: =+D15 -> -32000 | F15: =+E15 -> -32000 | G15: =+F15 -> -32000 | H15: =+G15 -> -32000 | I15: =+H15 -> -32000 | J15: =+I15 -> -32000 | K15: =+J15 -> -32000 | L15: =+K15 -> -32000 | M15: =+L15 -> -32000 | N15: =+M15 -> -32000 | O15: =-Egresos!$E$11 -> -49500 | P15: =+O15 -> -49500 | Q15: =+P15 -> -49500 | R15: =+Q15 -> -49500 | S15: =+R15 -> -49500 | T15: =+S15 -> -49500 | U15: =+T15 -> -49500 | V15: =+U15 -> -49500 | W15: =+V15 -> -49500 | X15: =+W15 -> -49500 | Y15: =+X15 -> -49500 | Z15: =+Y15 -> -49500 | AA15: =-Egresos!$F$11 -> -49500 | AB15: =+AA15 -> -49500 | AC15: =+AB15 -> -49500 | AD15: =+AC15 -> -49500 | AE15: =+AD15 -> -49500 | AF15: =+AE15 -> -49500 | AG15: =+AF15 -> -49500 | AH15: =+AG15 -> -49500 | AI15: =+AH15 -> -49500 | AJ15: =+AI15 -> -49500 | AK15: =+AJ15 -> -49500 | AL15: =+AK15 -> -49500 | AM15: =+AL15 -> -49500 | AN15: =+AM15 -> -49500 | AO15: =+AN15 -> -49500 | AP15: =+AO15 -> -49500 | AQ15: =+AP15 -> -49500 | AR15: =+AQ15 -> -49500 | AS15: =+AR15 -> -49500 | AT15: =+AS15 -> -49500 | AU15: =+AT15 -> -49500 | AV15: =+AU15 -> -49500 | AW15: =+AV15 -> -49500 | AX15: =+AW15 -> -49500 | AY15: =+AX15 -> -49500 | AZ15: =+AY15 -> -49500 | BA15: =+AZ15 -> -49500 | BB15: =+BA15 -> -49500 | BC15: =+BB15 -> -49500 | BD15: =+BC15 -> -49500 | BE15: =+BD15 -> -49500 | BF15: =+BE15 -> -49500 | BG15: =+BF15 -> -49500 | BH15: =+BG15 -> -49500 | BI15: =+BH15 -> -49500 | BJ15: =+BI15 -> -49500
A16: AWS Data Center | B16: 0 | C16: =-Egresos!$D$19 -> -1150 | D16: =+C16 -> -1150 | E16: =-Egresos!$D$19 -> -1150 | F16: =-Egresos!$D$19 -> -1150 | G16: =-Egresos!$D$19 -> -1150 | H16: =-Egresos!$D$19 -> -1150 | I16: =-Egresos!$D$19 -> -1150 | J16: =-Egresos!$D$19 -> -1150 | K16: =-Egresos!$D$19 -> -1150 | L16: =-Egresos!$D$19 -> -1150 | M16: =-Egresos!$D$19 -> -1150 | N16: =-Egresos!$D$19 -> -1150 | O16: =-Egresos!$D$19 -> -1150 | P16: =-Egresos!$D$19 -> -1150 | Q16: =-Egresos!$D$19 -> -1150 | R16: =-Egresos!$D$19 -> -1150 | S16: =-Egresos!$D$19 -> -1150 | T16: =-Egresos!$D$19 -> -1150 | U16: =-Egresos!$D$19 -> -1150 | V16: =-Egresos!$D$19 -> -1150 | W16: =-Egresos!$D$19 -> -1150 | X16: =-Egresos!$D$19 -> -1150 | Y16: =-Egresos!$D$19 -> -1150 | Z16: =-Egresos!$D$19 -> -1150 | AA16: =-Egresos!$F$19 -> -9900 | AB16: =-Egresos!$F$19 -> -9900 | AC16: =-Egresos!$F$19 -> -9900 | AD16: =-Egresos!$F$19 -> -9900 | AE16: =-Egresos!$F$19 -> -9900 | AF16: =-Egresos!$F$19 -> -9900 | AG16: =-Egresos!$F$19 -> -9900 | AH16: =-Egresos!$F$19 -> -9900 | AI16: =-Egresos!$F$19 -> -9900 | AJ16: =-Egresos!$F$19 -> -9900 | AK16: =-Egresos!$F$19 -> -9900 | AL16: =-Egresos!$F$19 -> -9900 | AM16: =-Egresos!$F$19 -> -9900 | AN16: =-Egresos!$F$19 -> -9900 | AO16: =-Egresos!$F$19 -> -9900 | AP16: =-Egresos!$F$19 -> -9900 | AQ16: =-Egresos!$F$19 -> -9900 | AR16: =-Egresos!$F$19 -> -9900 | AS16: =-Egresos!$F$19 -> -9900 | AT16: =-Egresos!$F$19 -> -9900 | AU16: =-Egresos!$F$19 -> -9900 | AV16: =-Egresos!$F$19 -> -9900 | AW16: =-Egresos!$F$19 -> -9900 | AX16: =-Egresos!$F$19 -> -9900 | AY16: =-Egresos!$F$19 -> -9900 | AZ16: =-Egresos!$F$19 -> -9900 | BA16: =-Egresos!$F$19 -> -9900 | BB16: =-Egresos!$F$19 -> -9900 | BC16: =-Egresos!$F$19 -> -9900 | BD16: =-Egresos!$F$19 -> -9900 | BE16: =-Egresos!$F$19 -> -9900 | BF16: =-Egresos!$F$19 -> -9900 | BG16: =-Egresos!$F$19 -> -9900 | BH16: =-Egresos!$F$19 -> -9900 | BI16: =-Egresos!$F$19 -> -9900 | BJ16: =-Egresos!$F$19 -> -9900
A17: CCD | B17: 0 | C17: =-Egresos!$D$20 -> -3000 | D17: =-Egresos!$D$20 -> -3000 | E17: =-Egresos!$D$20 -> -3000 | F17: =-Egresos!$D$20 -> -3000 | G17: =-Egresos!$D$20 -> -3000 | H17: =-Egresos!$D$20 -> -3000 | I17: =-Egresos!$D$20 -> -3000 | J17: =-Egresos!$D$20 -> -3000 | K17: =-Egresos!$D$20 -> -3000 | L17: =-Egresos!$D$20 -> -3000 | M17: =-Egresos!$D$20 -> -3000 | N17: =-Egresos!$D$20 -> -3000 | O17: =-Egresos!$D$20 -> -3000 | P17: =-Egresos!$D$20 -> -3000 | Q17: =-Egresos!$D$20 -> -3000 | R17: =-Egresos!$D$20 -> -3000 | S17: =-Egresos!$D$20 -> -3000 | T17: =-Egresos!$D$20 -> -3000 | U17: =-Egresos!$D$20 -> -3000 | V17: =-Egresos!$D$20 -> -3000 | W17: =-Egresos!$D$20 -> -3000 | X17: =-Egresos!$D$20 -> -3000 | Y17: =-Egresos!$D$20 -> -3000 | Z17: =-Egresos!$D$20 -> -3000 | AA17: =-Egresos!$D$20 -> -3000 | AB17: =-Egresos!$D$20 -> -3000 | AC17: =-Egresos!$D$20 -> -3000 | AD17: =-Egresos!$D$20 -> -3000 | AE17: =-Egresos!$D$20 -> -3000 | AF17: =-Egresos!$D$20 -> -3000 | AG17: =-Egresos!$D$20 -> -3000 | AH17: =-Egresos!$D$20 -> -3000 | AI17: =-Egresos!$D$20 -> -3000 | AJ17: =-Egresos!$D$20 -> -3000 | AK17: =-Egresos!$D$20 -> -3000 | AL17: =-Egresos!$D$20 -> -3000 | AM17: =-Egresos!$D$20 -> -3000 | AN17: =-Egresos!$D$20 -> -3000 | AO17: =-Egresos!$D$20 -> -3000 | AP17: =-Egresos!$D$20 -> -3000 | AQ17: =-Egresos!$D$20 -> -3000 | AR17: =-Egresos!$D$20 -> -3000 | AS17: =-Egresos!$D$20 -> -3000 | AT17: =-Egresos!$D$20 -> -3000 | AU17: =-Egresos!$D$20 -> -3000 | AV17: =-Egresos!$D$20 -> -3000 | AW17: =-Egresos!$D$20 -> -3000 | AX17: =-Egresos!$D$20 -> -3000 | AY17: =-Egresos!$D$20 -> -3000 | AZ17: =-Egresos!$D$20 -> -3000 | BA17: =-Egresos!$D$20 -> -3000 | BB17: =-Egresos!$D$20 -> -3000 | BC17: =-Egresos!$D$20 -> -3000 | BD17: =-Egresos!$D$20 -> -3000 | BE17: =-Egresos!$D$20 -> -3000 | BF17: =-Egresos!$D$20 -> -3000 | BG17: =-Egresos!$D$20 -> -3000 | BH17: =-Egresos!$D$20 -> -3000 | BI17: =-Egresos!$D$20 -> -3000 | BJ17: =-Egresos!$D$20 -> -3000
A18: Uxpin | B18: 0 | C18: =-Egresos!$B$22 -> -69 | D18: =+C18 -> -69 | E18: =+D18 -> -69 | F18: =+E18 -> -69 | G18: =+F18 -> -69 | H18: =+G18 -> -69 | I18: =+H18 -> -69 | J18: =+I18 -> -69 | K18: =+J18 -> -69 | L18: =+K18 -> -69 | M18: =+L18 -> -69 | N18: =+M18 -> -69 | O18: =+N18 -> -69 | P18: =+O18 -> -69 | Q18: =+P18 -> -69 | R18: =+Q18 -> -69 | S18: =+R18 -> -69 | T18: =+S18 -> -69 | U18: =+T18 -> -69 | V18: =+U18 -> -69 | W18: =+V18 -> -69 | X18: =+W18 -> -69 | Y18: =+X18 -> -69 | Z18: =+Y18 -> -69 | AA18: =+Z18 -> -69 | AB18: =+AA18 -> -69 | AC18: =+AB18 -> -69 | AD18: =+AC18 -> -69 | AE18: =+AD18 -> -69 | AF18: =+AE18 -> -69 | AG18: =+AF18 -> -69 | AH18: =+AG18 -> -69 | AI18: =+AH18 -> -69 | AJ18: =+AI18 -> -69 | AK18: =+AJ18 -> -69 | AL18: =+AK18 -> -69 | AM18: =+AL18 -> -69 | AN18: =+AM18 -> -69 | AO18: =+AN18 -> -69 | AP18: =+AO18 -> -69 | AQ18: =+AP18 -> -69 | AR18: =+AQ18 -> -69 | AS18: =+AR18 -> -69 | AT18: =+AS18 -> -69 | AU18: =+AT18 -> -69 | AV18: =+AU18 -> -69 | AW18: =+AV18 -> -69 | AX18: =+AW18 -> -69 | AY18: =+AX18 -> -69 | AZ18: =+AY18 -> -69 | BA18: =+AZ18 -> -69 | BB18: =+BA18 -> -69 | BC18: =+BB18 -> -69 | BD18: =+BC18 -> -69 | BE18: =+BD18 -> -69 | BF18: =+BE18 -> -69 | BG18: =+BF18 -> -69 | BH18: =+BG18 -> -69 | BI18: =+BH18 -> -69 | BJ18: =+BI18 -> -69
A19: App Store (Apple Inc.) | B19: 0 | C19: =-Egresos!$B$23 -> -8.25 | D19: =+C19 -> -8.25 | E19: -8.25 | F19: -8.25 | G19: -8.25 | H19: -8.25 | I19: -8.25 | J19: -8.25 | K19: -8.25 | L19: -8.25 | M19: -8.25 | N19: -8.25 | O19: -8.25 | P19: -8.25 | Q19: -8.25 | R19: -8.25 | S19: -8.25 | T19: -8.25 | U19: -8.25 | V19: -8.25 | W19: -8.25 | X19: -8.25 | Y19: -8.25 | Z19: -8.25 | AA19: -8.25 | AB19: -8.25 | AC19: -8.25 | AD19: -8.25 | AE19: -8.25 | AF19: -8.25 | AG19: -8.25 | AH19: -8.25 | AI19: -8.25 | AJ19: -8.25 | AK19: -8.25 | AL19: -8.25 | AM19: -8.25 | AN19: -8.25 | AO19: -8.25 | AP19: -8.25 | AQ19: -8.25 | AR19: -8.25 | AS19: -8.25 | AT19: -8.25 | AU19: -8.25 | AV19: -8.25 | AW19: -8.25 | AX19: -8.25 | AY19: -8.25 | AZ19: -8.25 | BA19: -8.25 | BB19: -8.25 | BC19: -8.25 | BD19: -8.25 | BE19: -8.25 | BF19: -8.25 | BG19: -8.25 | BH19: -8.25 | BI19: -8.25 | BJ19: -8.25
A20: Play Store (Alphabet Inc.) | B20: 0 | C20: =-Egresos!$B$24 -> -2.083333333 | D20: =+C20 -> -2.083333333 | E20: -2.083333333 | F20: -2.083333333 | G20: -2.083333333 | H20: -2.083333333 | I20: -2.083333333 | J20: -2.083333333 | K20: -2.083333333 | L20: -2.083333333 | M20: -2.083333333 | N20: -2.083333333 | O20: -2.083333333 | P20: -2.083333333 | Q20: -2.083333333 | R20: -2.083333333 | S20: -2.083333333 | T20: -2.083333333 | U20: -2.083333333 | V20: -2.083333333 | W20: -2.083333333 | X20: -2.083333333 | Y20: -2.083333333 | Z20: -2.083333333 | AA20: -2.083333333 | AB20: -2.083333333 | AC20: -2.083333333 | AD20: -2.083333333 | AE20: -2.083333333 | AF20: -2.083333333 | AG20: -2.083333333 | AH20: -2.083333333 | AI20: -2.083333333 | AJ20: -2.083333333 | AK20: -2.083333333 | AL20: -2.083333333 | AM20: -2.083333333 | AN20: -2.083333333 | AO20: -2.083333333 | AP20: -2.083333333 | AQ20: -2.083333333 | AR20: -2.083333333 | AS20: -2.083333333 | AT20: -2.083333333 | AU20: -2.083333333 | AV20: -2.083333333 | AW20: -2.083333333 | AX20: -2.083333333 | AY20: -2.083333333 | AZ20: -2.083333333 | BA20: -2.083333333 | BB20: -2.083333333 | BC20: -2.083333333 | BD20: -2.083333333 | BE20: -2.083333333 | BF20: -2.083333333 | BG20: -2.083333333 | BH20: -2.083333333 | BI20: -2.083333333 | BJ20: -2.083333333
A21: API Microsoft Computer Vision | B21: 0 | C21: =-Egresos!B37 -> -1234.4225 | D21: =-Egresos!C37 -> -1575.77195 | E21: =-Egresos!D37 -> -1529.85725 | F21: =-Egresos!E37 -> -1657.81625 | G21: =-Egresos!F37 -> -1809.4853 | H21: =-Egresos!G37 -> -1978.0901 | I21: =-Egresos!H37 -> -2168.14685 | J21: =-Egresos!I37 -> -2376.2684 | K21: =-Egresos!J37 -> -2612.23985 | L21: =-Egresos!K37 -> -2872.67405 | M21: =-Egresos!L37 -> -3163.96895 | N21: =-Egresos!M37 -> -3487.2536 | O21: =-Egresos!N37 -> -3999.8423 | P21: =-Egresos!O37 -> -4357.75115 | Q21: =-Egresos!P37 -> -4730.714 | R21: =-Egresos!Q37 -> -5133.78485 | S21: =-Egresos!R37 -> -5576.7488 | T21: =-Egresos!S37 -> -6060.7349 | U21: =-Egresos!T37 -> -6586.8722 | V21: =-Egresos!U37 -> -7142.4562 | W21: =-Egresos!V37 -> -7723.6564 | X21: =-Egresos!W37 -> -8359.051 | Y21: =-Egresos!X37 -> -9053.851 | Z21: =-Egresos!Y37 -> -9811.5304 | AA21: =-Egresos!Z37 -> -11567.6374 | AB21: =-Egresos!AA37 -> -12417.7252 | AC21: =-Egresos!AB37 -> -13132.6744 | AD21: =-Egresos!AC37 -> -13852.8346 | AE21: =-Egresos!AD37 -> -14609.1244 | AF21: =-Egresos!AE37 -> -15408.1444 | AG21: =-Egresos!AF37 -> -16249.1998 | AH21: =-Egresos!AG37 -> -17143.7548 | AI21: =-Egresos!AH37 -> -18087.988 | AJ21: =-Egresos!AI37 -> -19086.0682 | AK21: =-Egresos!AJ37 -> -20144.596 | AL21: =-Egresos!AK37 -> -21264.6136 | AM21: =-Egresos!AL37 -> -23186.4304 | AN21: =-Egresos!AM37 -> -24034.7812 | AO21: =-Egresos!AN37 -> -24648.637 | AP21: =-Egresos!AO37 -> -25224.9736 | AQ21: =-Egresos!AP37 -> -25802.005 | AR21: =-Egresos!AQ37 -> -26387.7214 | AS21: =-Egresos!AR37 -> -26986.9864 | AT21: =-Egresos!AS37 -> -27601.537 | AU21: =-Egresos!AT37 -> -28231.3732 | AV21: =-Egresos!AU37 -> -28876.495 | AW21: =-Egresos!AV37 -> -29534.4706 | AX21: =-Egresos!AW37 -> -30207.7318 | AY21: =-Egresos!AX37 -> -31941.2578 | AZ21: =-Egresos!AY37 -> -32129.896 | BA21: =-Egresos!AZ37 -> -31921.456 | BB21: =-Egresos!BA37 -> -31614.3544 | BC21: =-Egresos!BB37 -> -31284.6718 | BD21: =-Egresos!BC37 -> -30953.5996 | BE21: =-Egresos!BD37 -> -30621.8326 | BF21: =-Egresos!BE37 -> -30294.2344 | BG21: =-Egresos!BF37 -> -29972.542 | BH21: =-Egresos!BG37 -> -29650.1548 | BI21: =-Egresos!BH37 -> -29334.3682 | BJ21: =-Egresos!BI37 -> -29022.7504
A22: Call Center | B22: 0 | C22: =-Egresos!$B$25 -> -1199 | D22: =-Egresos!$B$25 -> -1199 | E22: =-Egresos!$B$25 -> -1199 | F22: =-Egresos!$B$25 -> -1199 | G22: =-Egresos!$B$25 -> -1199 | H22: =-Egresos!$B$25 -> -1199 | I22: =-Egresos!$B$25 -> -1199 | J22: =-Egresos!$B$25 -> -1199 | K22: =-Egresos!$B$25 -> -1199 | L22: =-Egresos!$B$25 -> -1199 | M22: =-Egresos!$B$25 -> -1199 | N22: =-Egresos!$B$25 -> -1199 | O22: =-Egresos!$B$25 -> -1199 | P22: =-Egresos!$B$25 -> -1199 | Q22: =-Egresos!$B$25 -> -1199 | R22: =-Egresos!$B$25 -> -1199 | S22: =-Egresos!$B$25 -> -1199 | T22: =-Egresos!$B$25 -> -1199 | U22: =-Egresos!$B$25 -> -1199 | V22: =-Egresos!$B$25 -> -1199 | W22: =-Egresos!$B$25 -> -1199 | X22: =-Egresos!$B$25 -> -1199 | Y22: =-Egresos!$B$25 -> -1199 | Z22: =-Egresos!$B$25 -> -1199 | AA22: =-Egresos!$B$25 -> -1199 | AB22: =-Egresos!$B$25 -> -1199 | AC22: =-Egresos!$B$25 -> -1199 | AD22: =-Egresos!$B$25 -> -1199 | AE22: =-Egresos!$B$25 -> -1199 | AF22: =-Egresos!$B$25 -> -1199 | AG22: =-Egresos!$B$25 -> -1199 | AH22: =-Egresos!$B$25 -> -1199 | AI22: =-Egresos!$B$25 -> -1199 | AJ22: =-Egresos!$B$25 -> -1199 | AK22: =-Egresos!$B$25 -> -1199 | AL22: =-Egresos!$B$25 -> -1199 | AM22: =-Egresos!$B$25 -> -1199 | AN22: =-Egresos!$B$25 -> -1199 | AO22: =-Egresos!$B$25 -> -1199 | AP22: =-Egresos!$B$25 -> -1199 | AQ22: =-Egresos!$B$25 -> -1199 | AR22: =-Egresos!$B$25 -> -1199 | AS22: =-Egresos!$B$25 -> -1199 | AT22: =-Egresos!$B$25 -> -1199 | AU22: =-Egresos!$B$25 -> -1199 | AV22: =-Egresos!$B$25 -> -1199 | AW22: =-Egresos!$B$25 -> -1199 | AX22: =-Egresos!$B$25 -> -1199 | AY22: =-Egresos!$B$25 -> -1199 | AZ22: =-Egresos!$B$25 -> -1199 | BA22: =-Egresos!$B$25 -> -1199 | BB22: =-Egresos!$B$25 -> -1199 | BC22: =-Egresos!$B$25 -> -1199 | BD22: =-Egresos!$B$25 -> -1199 | BE22: =-Egresos!$B$25 -> -1199 | BF22: =-Egresos!$B$25 -> -1199 | BG22: =-Egresos!$B$25 -> -1199 | BH22: =-Egresos!$B$25 -> -1199 | BI22: =-Egresos!$B$25 -> -1199 | BJ22: =-Egresos!$B$25 -> -1199
A23: Intereses financieros | B23: 0 | C23: 0 | D23: 0 | E23: 0 | F23: 0 | G23: 0 | H23: 0 | I23: 0 | J23: 0 | K23: 0 | L23: 0 | M23: 0 | N23: 0 | O23: 0 | P23: 0 | Q23: 0 | R23: 0 | S23: 0 | T23: 0 | U23: 0 | V23: 0 | W23: 0 | X23: 0 | Y23: 0 | Z23: 0 | AA23: =-'Prestamo- Aportes'!D22 -> -787.5 | AB23: =-'Prestamo- Aportes'!D23 -> -755.6210456 | AC23: =-'Prestamo- Aportes'!D24 -> -723.6623937 | AD23: =-'Prestamo- Aportes'!D25 -> -691.6238453 | AE23: =-'Prestamo- Aportes'!D26 -> -659.5052005 | AF23: =-'Prestamo- Aportes'!D27 -> -627.306259 | AG23: =-'Prestamo- Aportes'!D28 -> -595.0268203 | AH23: =-'Prestamo- Aportes'!D29 -> -562.6666829 | AI23: =-'Prestamo- Aportes'!D30 -> -530.2256451 | AJ23: =-'Prestamo- Aportes'!D31 -> -497.7035048 | AK23: =-'Prestamo- Aportes'!D32 -> -465.1000592 | AL23: =-'Prestamo- Aportes'!D33 -> -432.4151049 | AM23: =-'Prestamo- Aportes'!D34 -> -399.6484382 | AN23: =-'Prestamo- Aportes'!D35 -> -366.7998549 | AO23: =-'Prestamo- Aportes'!D36 -> -333.8691501 | AP23: =-'Prestamo- Aportes'!D37 -> -300.8561185 | AQ23: =-'Prestamo- Aportes'!D38 -> -267.7605544 | AR23: =-'Prestamo- Aportes'!D39 -> -234.5822513 | AS23: =-'Prestamo- Aportes'!D40 -> -201.3210025 | AT23: =-'Prestamo- Aportes'!D41 -> -167.9766006 | AU23: =-'Prestamo- Aportes'!D42 -> -134.5488377 | AV23: =-'Prestamo- Aportes'!D43 -> -101.0375053 | AW23: =-'Prestamo- Aportes'!D44 -> -67.44239464 | AX23: =-'Prestamo- Aportes'!D45 -> -33.76329619 | AY23: 0 | AZ23: 0 | BA23: 0 | BB23: 0 | BC23: 0 | BD23: 0 | BE23: 0 | BF23: 0 | BG23: 0 | BH23: 0 | BI23: 0 | BJ23: 0 | BK23: =SUM(B23:BJ23) -> -9937.962565
A24: Abogados (Kraglievich y Asociados) | B24: =-Egresos!B26 -> -1500 | C24: =-Egresos!$B$26 -> -1500 | D24: =+C24 -> -1500 | E24: -1500 | F24: -1500 | G24: -1500 | H24: -1500 | I24: -1500 | J24: -1500 | K24: -1500 | L24: -1500 | M24: -1500 | N24: -1500 | O24: -1500 | P24: -1500 | Q24: -1500 | R24: -1500 | S24: -1500 | T24: -1500 | U24: -1500 | V24: -1500 | W24: -1500 | X24: -1500 | Y24: -1500 | Z24: -1500 | AA24: -1500 | AB24: -1500 | AC24: -1500 | AD24: -1500 | AE24: -1500 | AF24: -1500 | AG24: -1500 | AH24: -1500 | AI24: -1500 | AJ24: -1500 | AK24: -1500 | AL24: -1500 | AM24: -1500 | AN24: -1500 | AO24: -1500 | AP24: -1500 | AQ24: -1500 | AR24: -1500 | AS24: -1500 | AT24: -1500 | AU24: -1500 | AV24: -1500 | AW24: -1500 | AX24: -1500 | AY24: =+AX24 -> -1500 | AZ24: -1500 | BA24: -1500 | BB24: -1500 | BC24: -1500 | BD24: -1500 | BE24: -1500 | BF24: -1500 | BG24: -1500 | BH24: -1500 | BI24: -1500 | BJ24: -1500
A25: Contadores (Palagi y asociados) | B25: =-Egresos!B27 -> -1500 | C25: =-Egresos!$B$27 -> -1500 | D25: =+C25 -> -1500 | E25: =+D25 -> -1500 | F25: =+E25 -> -1500 | G25: =+F25 -> -1500 | H25: =+G25 -> -1500 | I25: =+H25 -> -1500 | J25: =+I25 -> -1500 | K25: =+J25 -> -1500 | L25: =+K25 -> -1500 | M25: =+L25 -> -1500 | N25: =+M25 -> -1500 | O25: =+N25 -> -1500 | P25: =+O25 -> -1500 | Q25: =+P25 -> -1500 | R25: =+Q25 -> -1500 | S25: =+R25 -> -1500 | T25: =+S25 -> -1500 | U25: =+T25 -> -1500 | V25: =+U25 -> -1500 | W25: =+V25 -> -1500 | X25: =+W25 -> -1500 | Y25: =+X25 -> -1500 | Z25: =+Y25 -> -1500 | AA25: =+Z25 -> -1500 | AB25: =+AA25 -> -1500 | AC25: =+AB25 -> -1500 | AD25: =+AC25 -> -1500 | AE25: =+AD25 -> -1500 | AF25: =+AE25 -> -1500 | AG25: =+AF25 -> -1500 | AH25: =+AG25 -> -1500 | AI25: =+AH25 -> -1500 | AJ25: =+AI25 -> -1500 | AK25: =+AJ25 -> -1500 | AL25: =+AK25 -> -1500 | AM25: =+AL25 -> -1500 | AN25: =+AM25 -> -1500 | AO25: =+AN25 -> -1500 | AP25: =+AO25 -> -1500 | AQ25: =+AP25 -> -1500 | AR25: =+AQ25 -> -1500 | AS25: =+AR25 -> -1500 | AT25: =+AS25 -> -1500 | AU25: =+AT25 -> -1500 | AV25: =+AU25 -> -1500 | AW25: =+AV25 -> -1500 | AX25: =+AW25 -> -1500 | AY25: -1500 | AZ25: -1500 | BA25: -1500 | BB25: -1500 | BC25: -1500 | BD25: -1500 | BE25: -1500 | BF25: -1500 | BG25: -1500 | BH25: -1500 | BI25: -1500 | BJ25: -1500
A26: Mkt Digital + Publicidad | B26: =-Egresos!C28 -> -7000 | C26: =-Egresos!$C$28 -> -7000 | D26: =+C26 -> -7000 | E26: =+D26 -> -7000 | F26: =+E26 -> -7000 | G26: =+F26 -> -7000 | H26: =+G26 -> -7000 | I26: =+H26 -> -7000 | J26: =+I26 -> -7000 | K26: =+J26 -> -7000 | L26: =+K26 -> -7000 | M26: =+L26 -> -7000 | N26: =+M26 -> -7000 | O26: =-Egresos!$D$28 -> -12000 | P26: =+O26 -> -12000 | Q26: =+P26 -> -12000 | R26: =+Q26 -> -12000 | S26: =+R26 -> -12000 | T26: =+S26 -> -12000 | U26: =+T26 -> -12000 | V26: =+U26 -> -12000 | W26: =+V26 -> -12000 | X26: =+W26 -> -12000 | Y26: =+X26 -> -12000 | Z26: =+Y26 -> -12000 | AA26: =-Egresos!$E$28 -> -11000 | AB26: =+AA26 -> -11000 | AC26: =+AB26 -> -11000 | AD26: =+AC26 -> -11000 | AE26: =+AD26 -> -11000 | AF26: =+AE26 -> -11000 | AG26: =+AF26 -> -11000 | AH26: =+AG26 -> -11000 | AI26: =+AH26 -> -11000 | AJ26: =+AI26 -> -11000 | AK26: =+AJ26 -> -11000 | AL26: =+AK26 -> -11000 | AM26: =-Egresos!$F$28 -> -10000 | AN26: =+AM26 -> -10000 | AO26: =+AN26 -> -10000 | AP26: =+AO26 -> -10000 | AQ26: =+AP26 -> -10000 | AR26: =+AQ26 -> -10000 | AS26: =+AR26 -> -10000 | AT26: =+AS26 -> -10000 | AU26: =+AT26 -> -10000 | AV26: =+AU26 -> -10000 | AW26: =+AV26 -> -10000 | AX26: =+AW26 -> -10000 | AY26: =-Egresos!$G$28 -> -9000 | AZ26: =+AY26 -> -9000 | BA26: =+AZ26 -> -9000 | BB26: =+BA26 -> -9000 | BC26: =+BB26 -> -9000 | BD26: =+BC26 -> -9000 | BE26: =+BD26 -> -9000 | BF26: =+BE26 -> -9000 | BG26: =+BF26 -> -9000 | BH26: =+BG26 -> -9000 | BI26: =+BH26 -> -9000 | BJ26: =+BI26 -> -9000
A27: EBITDA | B27: =+B12+B13 -> -10000 | C27: -48680.75583 | D27: -48402.09099 | E27: -48084.76859 | F27: -47967.19189 | G27: -47841.57648 | H27: -47700.14006 | I27: -47539.25164 | J27: -47363.83926 | K27: -47167.50564 | L27: -46946.35963 | M27: -46698.93199 | N27: -47329.09945 | O27: -69392.03174 | P27: -68130.62209 | Q27: -66725.07766 | R27: -65193.02797 | S27: -63518.97146 | T27: -61686.25656 | U27: -59687.21856 | V27: -57474.72857 | W27: -55035.26691 | X27: -52372.37556 | Y27: -49465.2622 | Z27: -47203.37727 | AA27: -49146.57336 | AB27: -39708.57132 | AC27: -29338.16607 | AD27: -18296.29309 | AE27: -6601.945829 | AF27: 5773.542002 | AG27: 18858.48224 | AH27: =+AH12+AH13 -> 32703.14555 | AI27: 47348.77435 | AJ27: 62836.1271 | AK27: 79221.34331 | AL27: 98350.3715 | AM27: 122070.8268 | AN27: 147881.525 | AO27: 174876.6105 | AP27: 202636.4804 | AQ27: 231076.8009 | AR27: 260187.7436 | AS27: 289981.9895 | AT27: 320476.0656 | AU27: 351688.6356 | AV27: 383638.3633 | AW27: 416337.572 | AX27: 458297.317 | AY27: 499802.1607 | AZ27: 543734.9084 | BA27: 588213.1223 | BB27: 632463.2213 | BC27: 676294.7131 | BD27: 719662.0065 | BE27: 762554.7214 | BF27: 804976.2678 | BG27: 846933.9768 | BH27: 888426.6161 | BI27: 929464.0556 | BJ27: 988427.2514 | BK27: =SUM(B27:BJ27) -> 11144497.46 | BL27: =+BL12+BK13 -> 11144497.46
A28: Amortizaciones | B28: 0 | C28: =-Amort!$F$5 -> -164.7 | D28: =+C28 -> -164.7 | E28: =+D28 -> -164.7 | F28: -164.7 | G28: -164.7 | H28: -164.7 | I28: -164.7 | J28: -164.7 | K28: -164.7 | L28: -164.7 | M28: -164.7 | N28: -164.7 | O28: =+N28 -> -164.7 | P28: =+O28 -> -164.7 | Q28: =+P28 -> -164.7 | R28: =+Q28 -> -164.7 | S28: =+R28 -> -164.7 | T28: =+S28 -> -164.7 | U28: =+T28 -> -164.7 | V28: =+U28 -> -164.7 | W28: =+V28 -> -164.7 | X28: =+W28 -> -164.7 | Y28: =+X28 -> -164.7 | Z28: =+Y28 -> -164.7 | AA28: =-Amort!$F$5 -> -164.7 | AB28: -164.7 | AC28: -164.7 | AD28: -164.7 | AE28: -164.7 | AF28: -164.7 | AG28: -164.7 | AH28: -164.7 | AI28: -164.7 | AJ28: -164.7 | AK28: -164.7 | AL28: -164.7 | AM28: -164.7 | AN28: -164.7 | AO28: -164.7 | AP28: -164.7 | AQ28: -164.7 | AR28: -164.7 | AS28: -164.7 | AT28: -164.7 | AU28: -164.7 | AV28: -164.7 | AW28: -164.7 | AX28: -164.7 | AY28: -164.7 | AZ28: -164.7 | BA28: -164.7 | BB28: -164.7 | BC28: -164.7 | BD28: -164.7 | BE28: -164.7 | BF28: -164.7 | BG28: -164.7 | BH28: -164.7 | BI28: -164.7 | BJ28: -164.7 | BK28: =SUM(B28:BJ28) -> -9882
A29: EBIT | B29: =+B27+B28 -> -10000 | C29: =+C27+C28 -> -48845.45583 | D29: =+D27+D28 -> -48566.79099 | E29: -48249.46859 | F29: -48131.89189 | G29: -48006.27648 | H29: -47864.84006 | I29: -47703.95164 | J29: -47528.53926 | K29: -47332.20564 | L29: -47111.05963 | M29: -46863.63199 | N29: -47493.79945 | O29: -69556.73174 | P29: -68295.32209 | Q29: -66889.77766 | R29: -65357.72797 | S29: -63683.67146 | T29: -61850.95656 | U29: -59851.91856 | V29: -57639.42857 | W29: -55199.96691 | X29: -52537.07556 | Y29: -49629.9622 | Z29: -47368.07727 | AA29: -49311.27336 | AB29: -39873.27132 | AC29: -29502.86607 | AD29: -18460.99309 | AE29: -6766.645829 | AF29: 5608.842002 | AG29: 18693.78224 | AH29: 32538.44555 | AI29: 47184.07435 | AJ29: 62671.4271 | AK29: 79056.64331 | AL29: 98185.6715 | AM29: 121906.1268 | AN29: 147716.825 | AO29: 174711.9105 | AP29: 202471.7804 | AQ29: 230912.1009 | AR29: 260023.0436 | AS29: 289817.2895 | AT29: 320311.3656 | AU29: 351523.9356 | AV29: 383473.6633 | AW29: 416172.872 | AX29: 458132.617 | AY29: 499637.4607 | AZ29: 543570.2084 | BA29: 588048.4223 | BB29: 632298.5213 | BC29: 676130.0131 | BD29: 719497.3065 | BE29: 762390.0214 | BF29: 804811.5678 | BG29: 846769.2768 | BH29: 888261.9161 | BI29: 929299.3556 | BJ29: 988262.5514 | BK29: 11134615.46 | BL29: =+BL27+BK28 -> 11134615.46
A30: Resultados Financieros + | BK30: 0
A31: Resultados Financieros - | BK31: 0
A32: EBT | B32: =+B29+B30+B31 -> -10000 | C32: =+C29+C30+C31 -> -48845.45583 | D32: =+D29+D30+D31 -> -48566.79099 | E32: -48249.46859 | F32: -48131.89189 | G32: -48006.27648 | H32: -47864.84006 | I32: -47703.95164 | J32: -47528.53926 | K32: -47332.20564 | L32: -47111.05963 | M32: -46863.63199 | N32: -47493.79945 | O32: -69556.73174 | P32: -68295.32209 | Q32: -66889.77766 | R32: -65357.72797 | S32: -63683.67146 | T32: -61850.95656 | U32: -59851.91856 | V32: -57639.42857 | W32: -55199.96691 | X32: -52537.07556 | Y32: -49629.9622 | Z32: -47368.07727 | AA32: -49311.27336 | AB32: -39873.27132 | AC32: -29502.86607 | AD32: -18460.99309 | AE32: -6766.645829 | AF32: 5608.842002 | AG32: 18693.78224 | AH32: 32538.44555 | AI32: 47184.07435 | AJ32: 62671.4271 | AK32: 79056.64331 | AL32: 98185.6715 | AM32: 121906.1268 | AN32: 147716.825 | AO32: 174711.9105 | AP32: 202471.7804 | AQ32: 230912.1009 | AR32: 260023.0436 | AS32: 289817.2895 | AT32: 320311.3656 | AU32: 351523.9356 | AV32: 383473.6633 | AW32: 416172.872 | AX32: 458132.617 | AY32: 499637.4607 | AZ32: 543570.2084 | BA32: 588048.4223 | BB32: 632298.5213 | BC32: 676130.0131 | BD32: 719497.3065 | BE32: 762390.0214 | BF32: 804811.5678 | BG32: 846769.2768 | BH32: 888261.9161 | BI32: 929299.3556 | BJ32: 988262.5514 | BK32: 11134615.46
A33: Income Tax | AF33: =-AF32*$B$38 -> -841.3263003 | AG33: -2804.067336 | AH33: -4880.766833 | AI33: -7077.611153 | AJ33: -9400.714065 | AK33: -11858.4965 | AL33: -14727.85073 | AM33: -18285.91902 | AN33: -22157.52375 | AO33: -26206.78657 | AP33: -30370.76705 | AQ33: -34636.81514 | AR33: =-AR32*$B$38 -> -39003.45655 | AS33: =-AS32*$B$38 -> -43472.59343 | AT33: =-AT32*$B$38 -> -48046.70484 | AU33: =-AU32*$B$38 -> -52728.59034 | AV33: =-AV32*$B$38 -> -57521.0495 | AW33: =-AW32*$B$38 -> -62425.9308 | AX33: =-AX32*$B$38 -> -68719.89255 | AY33: =-AY32*$B$38 -> -74945.6191 | AZ33: =-AZ32*$B$38 -> -81535.53125 | BA33: =-BA32*$B$38 -> -88207.26334 | BB33: -94844.77819 | BC33: =-BC32*$B$38 -> -101419.502 | BD33: =-BD32*$B$38 -> -107924.596 | BE33: -114358.5032 | BF33: -120721.7352 | BG33: -127015.3915 | BH33: -133239.2874 | BI33: -139394.9033 | BJ33: -148239.3827 | BK33: -1887013.356
A34: NOPAT | B34: =+B32+B33 -> -10000 | C34: -48845.45583 | D34: -48566.79099 | E34: -48249.46859 | F34: -48131.89189 | G34: -48006.27648 | H34: -47864.84006 | I34: -47703.95164 | J34: -47528.53926 | K34: -47332.20564 | L34: -47111.05963 | M34: -46863.63199 | N34: -47493.79945 | O34: -69556.73174 | P34: -68295.32209 | Q34: -66889.77766 | R34: -65357.72797 | S34: -63683.67146 | T34: -61850.95656 | U34: -59851.91856 | V34: -57639.42857 | W34: -55199.96691 | X34: -52537.07556 | Y34: -49629.9622 | Z34: -47368.07727 | AA34: -49311.27336 | AB34: -39873.27132 | AC34: -29502.86607 | AD34: -18460.99309 | AE34: -6766.645829 | AF34: 4767.515702 | AG34: 15889.71491 | AH34: =+AH32+AH33 -> 27657.67872 | AI34: 40106.4632 | AJ34: 53270.71303 | AK34: 67198.14682 | AL34: 83457.82078 | AM34: 103620.2078 | AN34: 125559.3013 | AO34: 148505.1239 | AP34: 172101.0133 | AQ34: 196275.2858 | AR34: 221019.5871 | AS34: 246344.6961 | AT34: 272264.6608 | AU34: 298795.3453 | AV34: 325952.6138 | AW34: 353746.9412 | AX34: 389412.7245 | AY34: 424691.8416 | AZ34: 462034.6771 | BA34: 499841.1589 | BB34: 537453.7431 | BC34: 574710.5111 | BD34: 611572.7106 | BE34: 648031.5182 | BF34: 684089.8327 | BG34: 719753.8852 | BH34: 755022.6286 | BI34: 789904.4522 | BJ34: 840023.1687 | BK34: 9247602.104 | BL34: =+BL29+BK33 -> 9247602.104
A36: Tax España
A37: Impuesto de sociedades (beneficios comerciales, ingresos, ganancias de capital) | B37: 0.25
A38: Compañías nuevas que obtienen ganancia tanto en su primer periodo fiscal como en el siguiente periodo fiscal | B38: 0.15

Sheet Ventas
A4: Suscrpciones | B4: Precio
A5: Membresía Free | B5: 0
A6: Membresía Premium | B6: 8.99
A8: Ratios Mensuales | B8: Año 1 | C8: Año 2 | D8: Año 3 | E8: Año 4 | F8: Año 5
A9: Crecimiento Free | B9: 0.15 | C9: 0.15 | D9: 0.15 | E9: 0.15 | F9: 0.15
A10: Crecimiento Premium | B10: 0.05 | C10: 0.1 | D10: 0.2 | E10: 0.25 | F10: 0.3
A11: Ratio de perdida de usuarios | B11: 0.03 | C11: 0.05 | D11: 0.08 | E11: 0.11 | F11: 0.14
A13: MAU
A14: MAU esperados Free | B14: 0.5
A15: MAU esperados Premium | B15: 0.7
B18: MES 1 | C18: MES 2 | D18: MES 3 | E18: MES 4 | F18: MES 5 | G18: MES 6 | H18: MES 7 | I18: MES 8 | J18: MES 9 | K18: MES 10 | L18: MES 11 | M18: MES 12 | N18: MES 13 | O18: MES 14 | P18: MES 15 | Q18: MES 16 | R18: MES 17 | S18: MES 18 | T18: MES 19 | U18: MES 20 | V18: MES 21 | W18: MES 22 | X18: MES 23 | Y18: MES 24 | Z18: MES 25 | AA18: MES 26 | AB18: MES 27 | AC18: MES 28 | AD18: MES 29 | AE18: MES 30 | AF18: MES 31 | AG18: MES 32 | AH18: MES 33 | AI18: MES 34 | AJ18: MES 35 | AK18: MES 36 | AL18: MES 37 | AM18: MES 38 | AN18: MES 39 | AO18: MES 40 | AP18: MES 41 | AQ18: MES 42 | AR18: MES 43 | AS18: MES 44 | AT18: MES 45 | AU18: MES 46 | AV18: MES 47 | AW18: MES 48 | AX18: MES 49 | AY18: MES 50 | AZ18: MES 51 | BA18: MES 52 | BB18: MES 53 | BC18: MES 54 | BD18: MES 55 | BE18: MES 56 | BF18: MES 57 | BG18: MES 58 | BH18: MES 59 | BI18: MES 60
A19: Descargas Free | B19: 470 | C19: =+ROUND(B19*(1+$B$9)*(1-$B$11),0) -> 524 | D19: =+ROUND(C19*(1+$B$9)*(1-$B$11),0) -> 585 | E19: 653 | F19: 728 | G19: 812 | H19: 906 | I19: =+ROUND(H19*(1+$B$9)*(1-$B$11),0) -> 1011 | J19: 1128 | K19: 1258 | L19: =+ROUND(K19*(1+$B$9)*(1-$B$11),0) -> 1403 | M19: 1565 | N19: =+ROUND(M19*(1+$C$9)*(1-$C$11),0) -> 1710 | O19: =+ROUND(N19*(1+$C$9)*(1-$C$11),0) -> 1868 | P19: 2041 | Q19: 2230 | R19: 2436 | S19: 2661 | T19: 2907 | U19: 3176 | V19: =+ROUND(U19*(1+$C$9)*(1-$C$11),0) -> 3470 | W19: 3791 | X19: 4142 | Y19: 4525 | Z19: =+ROUND(Y19*(1+$D$9)*(1-$D$11),0) -> 4787 | AA19: =+ROUND(Z19*(1+$D$9)*(1-$D$11),0) -> 5065 | AB19: 5359 | AC19: 5670 | AD19: 5999 | AE19: 6347 | AF19: 6715 | AG19: 7104 | AH19: 7516 | AI19: 7952 | AJ19: 8413 | AK19: 8901 | AL19: =+ROUND(AK19*(1+$E$9)*(1-$E$11),0) -> 9110 | AM19: =+ROUND(AL19*(1+$E$9)*(1-$E$11),0) -> 9324 | AN19: 9543 | AO19: 9767 | AP19: 9997 | AQ19: 10232 | AR19: 10472 | AS19: 10718 | AT19: 10970 | AU19: 11228 | AV19: 11492 | AW19: 11762 | AX19: =+ROUND(AW19*(1+$F$9)*(1-$F$11),0) -> 11633 | AY19: =+ROUND(AX19*(1+$F$9)*(1-$F$11),0) -> 11505 | AZ19: 11378 | BA19: 11253 | BB19: 11129 | BC19: 11007 | BD19: 10886 | BE19: 10766 | BF19: 10648 | BG19: 10531 | BH19: 10415 | BI19: 10300
A20: Descargas Premium (1er MES Free) | C20: =+ROUND(B19*(0.2)*(1-$B$11),0) -> 91 | D20: =+ROUND(C19*($B$10),0)+ROUND((C20)*$B$10*(1-$B$11),0) -> 30 | E20: =+ROUND(D19*($B$10),0)+ROUND((D20)*$B$10*(1-$B$11),0) -> 30 | F20: 34 | G20: 38 | H20: 43 | I20: 47 | J20: 53 | K20: 59 | L20: 66 | M20: 73 | N20: =+ROUND(M19*($C$10),0)+ROUND((M20)*$C$10*(1-$C$11),0) -> 164 | O20: =+ROUND(N19*($C$10),0)+ROUND((N20)*$C$10*(1-$C$11),0) -> 187 | P20: =+ROUND(O19*($C$10),0)+ROUND((O20)*$C$10*(1-$C$11),0) -> 205 | Q20: 223 | R20: 244 | S20: 267 | T20: 291 | U20: 319 | V20: 348 | W20: 380 | X20: 415 | Y20: 453 | Z20: =+ROUND(Y19*($D$10),0)+ROUND((Y20)*$D$10*(1-$D$11),0) -> 988 | AA20: =+ROUND(Z19*($D$10),0)+ROUND((Z20)*$D$10*(1-$D$11),0) -> 1139 | AB20: 1223 | AC20: 1297 | AD20: 1373 | AE20: 1453 | AF20: 1536 | AG20: 1626 | AH20: 1720 | AI20: 1819 | AJ20: 1925 | AK20: 2037 | AL20: =+ROUND(AK19*($E$10),0)+ROUND((AK20)*$E$10*(1-$E$11),0) -> 2678 | AM20: =+ROUND(AL19*($E$10),0)+ROUND((AL20)*$E$10*(1-$E$11),0) -> 2874 | AN20: 2970 | AO20: 3047 | AP20: 3120 | AQ20: 3193 | AR20: 3268 | AS20: 3345 | AT20: 3424 | AU20: 3505 | AV20: 3587 | AW20: 3671 | AX20: =+ROUND(AW19*($F$10),0)+ROUND((AW20)*$F$10*(1-$F$11),0) -> 4476 | AY20: =+ROUND(AX19*($F$10),0)+ROUND((AX20)*$F$10*(1-$F$11),0) -> 4645 | AZ20: 4650 | BA20: 4613 | BB20: 4566 | BC20: 4517 | BD20: 4467 | BE20: 4418 | BF20: 4370 | BG20: 4321 | BH20: 4274 | BI20: 4228
A21: Descargas Premium Incremental | C21: =+B21+C20 -> 91 | D21: =+C21+D20 -> 121 | E21: 151 | F21: 185 | G21: 223 | H21: 266 | I21: 313 | J21: 366 | K21: 425 | L21: 491 | M21: 564 | N21: 728 | O21: 915 | P21: 1120 | Q21: 1343 | R21: 1587 | S21: 1854 | T21: 2145 | U21: 2464 | V21: 2812 | W21: 3192 | X21: 3607 | Y21: 4060 | Z21: 5048 | AA21: 6187 | AB21: 7410 | AC21: 8707 | AD21: 10080 | AE21: 11533 | AF21: 13069 | AG21: 14695 | AH21: 16415 | AI21: =+AH21+AI20 -> 18234 | AJ21: 20159 | AK21: 22196 | AL21: 24874 | AM21: 27748 | AN21: 30718 | AO21: 33765 | AP21: 36885 | AQ21: 40078 | AR21: 43346 | AS21: 46691 | AT21: 50115 | AU21: 53620 | AV21: 57207 | AW21: 60878 | AX21: 65354 | AY21: 69999 | AZ21: 74649 | BA21: 79262 | BB21: 83828 | BC21: 88345 | BD21: 92812 | BE21: 97230 | BF21: 101600 | BG21: 105921 | BH21: 110195 | BI21: =+BH21+BI20 -> 114423
A22: Descargas totales | B22: =B19+B20 -> 470 | C22: 615 | D22: 615 | E22: 683 | F22: 762 | G22: 850 | H22: 949 | I22: 1058 | J22: 1181 | K22: 1317 | L22: 1469 | M22: 1638 | N22: 1874 | O22: 2055 | P22: 2246 | Q22: 2453 | R22: 2680 | S22: 2928 | T22: 3198 | U22: 3495 | V22: 3818 | W22: 4171 | X22: 4557 | Y22: 4978 | Z22: 5775 | AA22: 6204 | AB22: 6582 | AC22: 6967 | AD22: 7372 | AE22: 7800 | AF22: 8251 | AG22: 8730 | AH22: =AH19+AH20 -> 9236 | AI22: 9771 | AJ22: 10338 | AK22: 10938 | AL22: 11788 | AM22: 12198 | AN22: 12513 | AO22: 12814 | AP22: 13117 | AQ22: 13425 | AR22: 13740 | AS22: 14063 | AT22: 14394 | AU22: 14733 | AV22: 15079 | AW22: 15433 | AX22: 16109 | AY22: 16150 | AZ22: 16028 | BA22: 15866 | BB22: 15695 | BC22: 15524 | BD22: 15353 | BE22: 15184 | BF22: 15018 | BG22: 14852 | BH22: 14689 | BI22: 14528
A23: MAU Freemium | B23: =B19*$B$14 -> 235 | C23: 262 | D23: 292.5 | E23: 326.5 | F23: 364 | G23: 406 | H23: 453 | I23: 505.5 | J23: 564 | K23: 629 | L23: 701.5 | M23: 782.5 | N23: 855 | O23: 934 | P23: 1020.5 | Q23: 1115 | R23: 1218 | S23: 1330.5 | T23: 1453.5 | U23: 1588 | V23: 1735 | W23: 1895.5 | X23: 2071 | Y23: 2262.5 | Z23: 2393.5 | AA23: 2532.5 | AB23: 2679.5 | AC23: 2835 | AD23: 2999.5 | AE23: 3173.5 | AF23: 3357.5 | AG23: 3552 | AH23: =AH19*$B$14 -> 3758 | AI23: 3976 | AJ23: 4206.5 | AK23: 4450.5 | AL23: 4555 | AM23: 4662 | AN23: 4771.5 | AO23: 4883.5 | AP23: 4998.5 | AQ23: 5116 | AR23: 5236 | AS23: 5359 | AT23: 5485 | AU23: 5614 | AV23: 5746 | AW23: 5881 | AX23: 5816.5 | AY23: 5752.5 | AZ23: 5689 | BA23: 5626.5 | BB23: 5564.5 | BC23: 5503.5 | BD23: 5443 | BE23: 5383 | BF23: 5324 | BG23: 5265.5 | BH23: 5207.5 | BI23: 5150
A24: MAU Premium | B24: 0 | C24: =C20*$B$15 -> 63.7 | D24: 21 | E24: 21 | F24: 23.8 | G24: 26.6 | H24: 30.1 | I24: 32.9 | J24: 37.1 | K24: 41.3 | L24: 46.2 | M24: 51.1 | N24: 114.8 | O24: 130.9 | P24: 143.5 | Q24: 156.1 | R24: 170.8 | S24: 186.9 | T24: 203.7 | U24: 223.3 | V24: 243.6 | W24: 266 | X24: 290.5 | Y24: 317.1 | Z24: 691.6 | AA24: 797.3 | AB24: 856.1 | AC24: 907.9 | AD24: 961.1 | AE24: 1017.1 | AF24: 1075.2 | AG24: 1138.2 | AH24: 1204 | AI24: =AI20*$B$15 -> 1273.3 | AJ24: 1347.5 | AK24: 1425.9 | AL24: 1874.6 | AM24: 2011.8 | AN24: 2079 | AO24: 2132.9 | AP24: 2184 | AQ24: 2235.1 | AR24: 2287.6 | AS24: 2341.5 | AT24: 2396.8 | AU24: 2453.5 | AV24: 2510.9 | AW24: 2569.7 | AX24: 3133.2 | AY24: 3251.5 | AZ24: 3255 | BA24: 3229.1 | BB24: 3196.2 | BC24: 3161.9 | BD24: 3126.9 | BE24: 3092.6 | BF24: 3059 | BG24: 3024.7 | BH24: 2991.8 | BI24: 2959.6
A25: MAU Total | B25: =SUM(B23:B24) -> 235 | C25: 325.7 | D25: 313.5 | E25: 347.5 | F25: 387.8 | G25: 432.6 | H25: 483.1 | I25: 538.4 | J25: 601.1 | K25: 670.3 | L25: 747.7 | M25: 833.6 | N25: 969.8 | O25: 1064.9 | P25: 1164 | Q25: 1271.1 | R25: 1388.8 | S25: 1517.4 | T25: 1657.2 | U25: 1811.3 | V25: 1978.6 | W25: 2161.5 | X25: 2361.5 | Y25: 2579.6 | Z25: 3085.1 | AA25: 3329.8 | AB25: 3535.6 | AC25: 3742.9 | AD25: 3960.6 | AE25: 4190.6 | AF25: 4432.7 | AG25: 4690.2 | AH25: 4962 | AI25: 5249.3 | AJ25: 5554 | AK25: 5876.4 | AL25: 6429.6 | AM25: 6673.8 | AN25: 6850.5 | AO25: 7016.4 | AP25: 7182.5 | AQ25: 7351.1 | AR25: 7523.6 | AS25: 7700.5 | AT25: 7881.8 | AU25: 8067.5 | AV25: 8256.9 | AW25: 8450.7 | AX25: 8949.7 | AY25: 9004 | AZ25: 8944 | BA25: 8855.6 | BB25: 8760.7 | BC25: 8665.4 | BD25: 8569.9 | BE25: 8475.6 | BF25: 8383 | BG25: 8290.2 | BH25: 8199.3 | BI25: =SUM(BI23:BI24) -> 8109.6
A26: Uso de app (active/total) Free | B26: =B23/B19 -> 0.5 | C26: 0.5 | D26: 0.5 | E26: 0.5 | F26: 0.5 | G26: 0.5 | H26: 0.5 | I26: 0.5 | J26: 0.5 | K26: 0.5 | L26: 0.5 | M26: 0.5 | N26: 0.5 | O26: 0.5 | P26: 0.5 | Q26: 0.5 | R26: 0.5 | S26: 0.5 | T26: 0.5 | U26: 0.5 | V26: 0.5 | W26: 0.5 | X26: 0.5 | Y26: 0.5 | Z26: 0.5 | AA26: 0.5 | AB26: 0.5 | AC26: 0.5 | AD26: 0.5 | AE26: 0.5 | AF26: 0.5 | AG26: 0.5 | AH26: =AH23/AH19 -> 0.5 | AI26: 0.5 | AJ26: 0.5 | AK26: 0.5 | AL26: 0.5 | AM26: 0.5 | AN26: 0.5 | AO26: 0.5 | AP26: 0.5 | AQ26: 0.5 | AR26: 0.5 | AS26: 0.5 | AT26: 0.5 | AU26: 0.5 | AV26: 0.5 | AW26: 0.5 | AX26: 0.5 | AY26: 0.5 | AZ26: 0.5 | BA26: 0.5 | BB26: 0.5 | BC26: 0.5 | BD26: 0.5 | BE26: 0.5 | BF26: 0.5 | BG26: 0.5 | BH26: 0.5 | BI26: 0.5
A27: Uso de app (active/total) Premium | B27: - | C27: =C24/C20 -> 0.7 | D27: 0.7 | E27: 0.7 | F27: 0.7 | G27: 0.7 | H27: 0.7 | I27: 0.7 | J27: 0.7 | K27: 0.7 | L27: 0.7 | M27: 0.7 | N27: 0.7 | O27: 0.7 | P27: 0.7 | Q27: 0.7 | R27: 0.7 | S27: 0.7 | T27: 0.7 | U27: 0.7 | V27: 0.7 | W27: 0.7 | X27: 0.7 | Y27: 0.7 | Z27: 0.7 | AA27: 0.7 | AB27: 0.7 | AC27: 0.7 | AD27: 0.7 | AE27: 0.7 | AF27: 0.7 | AG27: 0.7 | AH27: 0.7 | AI27: =AI24/AI20 -> 0.7 | AJ27: 0.7 | AK27: 0.7 | AL27: 0.7 | AM27: 0.7 | AN27: 0.7 | AO27: 0.7 | AP27: 0.7 | AQ27: 0.7 | AR27: 0.7 | AS27: 0.7 | AT27: 0.7 | AU27: 0.7 | AV27: 0.7 | AW27: 0.7 | AX27: 0.7 | AY27: 0.7 | AZ27: 0.7 | BA27: 0.7 | BB27: 0.7 | BC27: 0.7 | BD27: 0.7 | BE27: 0.7 | BF27: 0.7 | BG27: 0.7 | BH27: 0.7 | BI27: 0.7
A28: Uso de app (active/total) Total | B28: =B25/B22 -> 0.5 | C28: 0.5295934959 | D28: 0.5097560976 | E28: 0.5087847731 | F28: 0.5089238845 | G28: 0.5089411765 | H28: 0.5090621707 | I28: 0.5088846881 | J28: 0.5089754445 | K28: 0.508959757 | L28: 0.5089857046 | M28: 0.5089133089 | N28: 0.5175026681 | O28: 0.5181995134 | P28: 0.518254675 | Q28: 0.5181818182 | R28: 0.5182089552 | S28: 0.5182377049 | T28: 0.5181988743 | U28: 0.5182546495 | V28: 0.5182294395 | W28: 0.5182210501 | X28: 0.5182137371 | Y28: 0.5182000804 | Z28: 0.5342164502 | AA28: 0.5367182463 | AB28: 0.5371619569 | AC28: 0.5372326683 | AD28: 0.5372490505 | AE28: 0.5372564103 | AF28: 0.5372318507 | AG28: 0.5372508591 | AH28: =AH25/AH22 -> 0.5372455608 | AI28: 0.5372326272 | AJ28: 0.5372412459 | AK28: 0.5372462973 | AL28: 0.5454360366 | AM28: 0.5471224791 | AN28: 0.5474706305 | AO28: 0.5475573591 | AP28: 0.5475718533 | AQ28: 0.5475679702 | AR28: 0.5475691412 | AS28: 0.5475716419 | AT28: 0.5475753786 | AU28: 0.547580262 | AV28: 0.5475760992 | AW28: 0.5475733817 | AX28: 0.5555714197 | AY28: 0.5575232198 | AZ28: 0.5580234589 | BA28: 0.5581495021 | BB28: 0.5581841351 | BC28: 0.5581937645 | BD28: 0.5581905816 | BE28: 0.5581928346 | BF28: 0.5581968305 | BG28: 0.5581874495 | BH28: 0.5581932058 | BI28: 0.5582048458

Sheet Egresos
A5: Costo Ventas
A6: PayPal Procesamiento Tarjetas | B6: 0.019
A7: PayPal Procesamiento Tarjetas Fee | B7: 0.28
C9: Montos Mensuales
C10: Año 0 | D10: Año 1 | E10: Año 2 | F10: Año 3 | G10: Año 4-5
A11: Sueldos Mensuales Empleados | D11: =+SUMPRODUCT($B$12:$B$18,D12:D18) -> 32000 | E11: =+SUMPRODUCT($B$12:$B$18,E12:E18) -> 49500 | F11: =+SUMPRODUCT($B$12:$B$18,F12:F18) -> 49500 | G11: =+SUMPRODUCT($B$12:$B$18,G12:G18) -> 49500
A12: Project Manager | B12: 2500 | D12: 1 | E12: 1 | F12: 1 | G12: 1
A13: Product Manager | B13: 2500 | D13: 1 | E13: 1 | F13: 1 | G13: 1
A14: DevOps Engineer | B14: 2500 | D14: 2 | E14: 1 | F14: 1 | G14: 1
A15: Ux Designer | B15: 2000 | D15: 1 | E15: 1 | F15: 1 | G15: 1
A16: Equipo comercial | B16: 2000 | D16: 1 | E16: 2 | F16: 2 | G16: 2
A17: Operaciones: HR y Finanzas | B17: 2000 | D17: 1 | E17: 2 | F17: 2 | G17: 2
A18: C-level (CEO, COO, CTO, CFO) | B18: 8000 | D18: 2 | E18: 4 | F18: 4 | G18: 4
A19: AWS Data Center | B19: 1150 | D19: =50000*0.023 -> 1150 | E19: =50000*0.023 -> 1150 | F19: =450000*0.022 -> 9900 | G19: =450000*0.022 -> 9900 | H19: AWS S3 Standard hasta 50TB a 0,023 USD x GB x mes y luego 450TB a 0,022 USD x GB x mes
A20: CCD | B20: 3000 | D20: 3000 | E20: 3000 | F20: 3000 | G20: 3000 | H20: Empresa de seguridad Informatica: https://www.ccd.com.co/quienes-somos/
A21: Dominio Landing Page | B21: 18 | D21: 18 | E21: 18 | F21: 18 | G21: 18
A22: UxPin (Por usuario por mes) | B22: 69 | D22: 69 | E22: 69 | F22: 69 | G22: 69
A23: App Store (Apple Inc.) (USD 99 anual, prorrateado) | B23: 8.25 | D23: 8.25 | E23: 8.25 | F23: 8.25 | G23: 8.25
A24: Play Store (Alphabet Inc.) (USD 99 anual, prorrateado) | B24: 2.083333333 | D24: 2.083333333 | E24: 2.083333333 | F24: 2.083333333 | G24: 2.083333333
A25: AnswerConnect Chat Support | B25: 1199 | D25: 1199 | E25: 1199 | F25: 1199 | G25: 1199
A26: Abogados (Kraglievich y Asociados) | B26: 1500 | C26: 1500 | D26: 1500 | E26: 1500 | F26: 1500 | G26: 1500
A27: Contadores (Palagi y asociados) | B27: 1500 | C27: 1500 | D27: 1500 | E27: 1500 | F27: 1500 | G27: 1500
A28: Marketing Digital | B28: - | C28: 7000 | D28: 12000 | E28: 11000 | F28: 10000 | G28: 9000 | H28: Agencia de marketing: https://www.mdmarketingdigital.com/en/what-is-digital-marketing
A30: API Microsoft Computer Vision
A31: Estimacion Transacciones diaras por usuarios | B31: 193 | C31: (16 tracciones por hora por 12 horas)
A32: Transacciones por mes | B32: =B31*30 -> 5790
A34: Proyeccion de transacciones | B34: MES 1 | C34: MES 2 | D34: MES 3 | E34: MES 4 | F34: MES 5 | G34: MES 6 | H34: MES 7 | I34: MES 8 | J34: MES 9 | K34: MES 10 | L34: MES 11 | M34: MES 12 | N34: MES 13 | O34: MES 14 | P34: MES 15 | Q34: MES 16 | R34: MES 17 | S34: MES 18 | T34: MES 19 | U34: MES 20 | V34: MES 21 | W34: MES 22 | X34: MES 23 | Y34: MES 24 | Z34: MES 25 | AA34: MES 26 | AB34: MES 27 | AC34: MES 28 | AD34: MES 29 | AE34: MES 30 | AF34: MES 31 | AG34: MES 32 | AH34: MES 33 | AI34: MES 34 | AJ34: MES 35 | AK34: MES 36 | AL34: MES 37 | AM34: MES 38 | AN34: MES 39 | AO34: MES 40 | AP34: MES 41 | AQ34: MES 42 | AR34: MES 43 | AS34: MES 44 | AT34: MES 45 | AU34: MES 46 | AV34: MES 47 | AW34: MES 48 | AX34: MES 49 | AY34: MES 50 | AZ34: MES 51 | BA34: MES 52 | BB34: MES 53 | BC34: MES 54 | BD34: MES 55 | BE34: MES 56 | BF34: MES 57 | BG34: MES 58 | BH34: MES 59 | BI34: MES 60
A35: Usuarios activos | B35: 235 | C35: 325.7 | D35: 313.5 | E35: 347.5 | F35: 387.8 | G35: 432.6 | H35: 483.1 | I35: 538.4 | J35: 601.1 | K35: 670.3 | L35: 747.7 | M35: 833.6 | N35: 969.8 | O35: 1064.9 | P35: 1164 | Q35: 1271.1 | R35: 1388.8 | S35: 1517.4 | T35: 1657.2 | U35: 1811.3 | V35: 1978.6 | W35: 2161.5 | X35: 2361.5 | Y35: 2579.6 | Z35: 3085.1 | AA35: 3329.8 | AB35: 3535.6 | AC35: 3742.9 | AD35: 3960.6 | AE35: 4190.6 | AF35: 4432.7 | AG35: 4690.2 | AH35: 4962 | AI35: 5249.3 | AJ35: 5554 | AK35: 5876.4 | AL35: 6429.6 | AM35: 6673.8 | AN35: 6850.5 | AO35: 7016.4 | AP35: 7182.5 | AQ35: 7351.1 | AR35: 7523.6 | AS35: 7700.5 | AT35: 7881.8 | AU35: 8067.5 | AV35: 8256.9 | AW35: 8450.7 | AX35: 8949.7 | AY35: 9004 | AZ35: 8944 | BA35: 8855.6 | BB35: 8760.7 | BC35: 8665.4 | BD35: 8569.9 | BE35: 8475.6 | BF35: 8383 | BG35: 8290.2 | BH35: 8199.3 | BI35: 8109.6
A36: Transacciones Totales mensuales | B36: 1360650 | C36: 1885803 | D36: 1815165 | E36: 2012025 | F36: 2245362 | G36: 2504754 | H36: 2797149 | I36: 3117336 | J36: 3480369 | K36: 3881037 | L36: 4329183 | M36: 4826544 | N36: 5615142 | O36: 6165771 | P36: 6739560 | Q36: 7359669 | R36: 8041152 | S36: 8785746 | T36: 9595188 | U36: 10487427 | V36: 11456094 | W36: 12515085 | X36: 13673085 | Y36: 14935884 | Z36: 17862729 | AA36: 19279542 | AB36: 20471124 | AC36: 21671391 | AD36: 22931874 | AE36: 24263574 | AF36: 25665333 | AG36: 27156258 | AH36: 28729980 | AI36: 30393447 | AJ36: 32157660 | AK36: 34024356 | AL36: 37227384 | AM36: 38641302 | AN36: 39664395 | AO36: 40624956 | AP36: 41586675 | AQ36: 42562869 | AR36: 43561644 | AS36: 44585895 | AT36: 45635622 | AU36: 46710825 | AV36: 47807451 | AW36: 48929553 | AX36: 51818763 | AY36: 52133160 | AZ36: 51785760 | BA36: 51273924 | BB36: 50724453 | BC36: 50172666 | BD36: 49619721 | BE36: 49073724 | BF36: 48537570 | BG36: 48000258 | BH36: 47473947 | BI36: 46954584
A37: Costo Total | B37: 1234.4225 | C37: 1575.77195 | D37: 1529.85725 | E37: 1657.81625 | F37: 1809.4853 | G37: 1978.0901 | H37: 2168.14685 | I37: 2376.2684 | J37: 2612.23985 | K37: 2872.67405 | L37: 3163.96895 | M37: 3487.2536 | N37: 3999.8423 | O37: 4357.75115 | P37: 4730.714 | Q37: 5133.78485 | R37: 5576.7488 | S37: 6060.7349 | T37: 6586.8722 | U37: 7142.4562 | V37: 7723.6564 | W37: 8359.051 | X37: 9053.851 | Y37: 9811.5304 | Z37: 11567.6374 | AA37: 12417.7252 | AB37: 13132.6744 | AC37: 13852.8346 | AD37: 14609.1244 | AE37: 15408.1444 | AF37: 16249.1998 | AG37: 17143.7548 | AH37: 18087.988 | AI37: 19086.0682 | AJ37: 20144.596 | AK37: 21264.6136 | AL37: 23186.4304 | AM37: 24034.7812 | AN37: 24648.637 | AO37: 25224.9736 | AP37: 25802.005 | AQ37: 26387.7214 | AR37: 26986.9864 | AS37: 27601.537 | AT37: 28231.3732 | AU37: 28876.495 | AV37: 29534.4706 | AW37: 30207.7318 | AX37: 31941.2578 | AY37: 32129.896 | AZ37: 31921.456 | BA37: 31614.3544 | BB37: 31284.6718 | BC37: 30953.5996 | BD37: 30621.8326 | BE37: 30294.2344 | BF37: 29972.542 | BG37: 29650.1548 | BH37: 29334.3682 | BI37: 29022.7504

Sheet Inversión
A4: Desarrollo de la Aplicación | F4: Creacion de la Sociedad Limitada en España
A5: Rol | B5: Pais | C5: Horas | D5: Total | F5: Rol | G5: Costo
A6: Senior Designer | B6: Argentina | C6: 380 | D6: 45600 | F6: Capital Minimo | G6: 3605
A7: Junior designer | B7: Argentina | C7: 380 | D7: 22800 | F7: Certificado negativo de denominación | G7: 16.25
A8: PM | B8: Argentina | C8: 520 | D8: 33800 | F8: Notaría | G8: 240
A9: Senior Eng web platform | B9: India | C9: 1040 | D9: 19760 | F9: Registro Mercantil | G9: 300
A10: Senior QA | B10: India | C10: 1040 | D10: 18720 | F10: Certificado digital | G10: 21
A11: Software Eng mobile | B11: India | C11: 1040 | D11: 19760 | F11: Gestor | G11: 5000
A12: Total | C12: =SUM(C6:C11) -> 4400 | D12: 160440 | F12: Total | G12: =SUM(G6:G11) -> 9182.25

Sheet Prestamo- Aportes
B5: Inicial | C5: a los 6 meses | D5: a los 15 meses | E5: Devolucion a los 48 meses | F5: Devolucion a los 60 meses | H5: Aporte | I5: Devuelve
A6: Aportes | B6: 350000 | C6: 535000 | D6: 532000 | E6: -815000 | F6: -815000 | G6: Aportes | H6: =SUM(B6:D6) -> 1417000 | I6: =E6+F6 -> -1630000
A7: Prestamo | B7: 300000 | C7: con dos años de gracias - sistema frances | G7: Prestamo | H7: =B7 -> 300000
A8: Tasa prestamo | B8: 0.05 | C8: % anual | G8: Total | H8: =H6+H7 -> 1717000
B10: Sistema Frances
B12: Periodicidad | G12: Mensual
B13: Cant. De Cuotas | G13: 24
B14: m = | G14: 1
B15: Monto del Contrato ( Sin IVA) | G15: 315000
B16: Tasa Efectiva mensual | G16: =B8/12 -> 0.004166666667
B18: Cuota Fija | G18: 13807.92747
A21: Nº | B21: CAPITAL ADEUDADO | C21: CUOTA FIJA | D21: CUOTA DE INTERES | E21: CUOTA DE CAPITAL | F21: Valor cuota
A22: 1 | B22: 315000 | C22: 13539.08177 | D22: 787.5 | E22: 12751.58177 | F22: 13539.08177
A23: 2 | B23: 302248.4182 | C23: 13539.08177 | D23: 755.6210456 | E23: 12783.46073 | F23: 13539.08177
A24: 3 | B24: 289464.9575 | C24: 13539.08177 | D24: 723.6623937 | E24: 12815.41938 | F24: 13539.08177
A25: 4 | B25: 276649.5381 | C25: 13539.08177 | D25: 691.6238453 | E25: 12847.45793 | F25: 13539.08177
A26: 5 | B26: 263802.0802 | C26: 13539.08177 | D26: 659.5052005 | E26: 12879.57657 | F26: 13539.08177
A27: 6 | B27: 250922.5036 | C27: 13539.08177 | D27: 627.306259 | E27: 12911.77551 | F27: 13539.08177
A28: 7 | B28: 238010.7281 | C28: 13539.08177 | D28: 595.0268203 | E28: 12944.05495 | F28: 13539.08177
A29: 8 | B29: 225066.6731 | C29: 13539.08177 | D29: 562.6666829 | E29: 12976.41509 | F29: 13539.08177
A30: 9 | B30: 212090.2581 | C30: 13539.08177 | D30: 530.2256451 | E30: 13008.85613 | F30: 13539.08177
A31: 10 | B31: 199081.4019 | C31: 13539.08177 | D31: 497.7035048 | E31: 13041.37827 | F31: 13539.08177
A32: 11 | B32: 186040.0237 | C32: 13539.08177 | D32: 465.1000592 | E32: 13073.98171 | F32: 13539.08177
A33: 12 | B33: 172966.0419 | C33: 13539.08177 | D33: 432.4151049 | E33: 13106.66667 | F33: 13539.08177
A34: 13 | B34: 159859.3753 | C34: 13539.08177 | D34: 399.6484382 | E34: 13139.43334 | F34: 13539.08177
A35: 14 | B35: 146719.9419 | C35: 13539.08177 | D35: 366.7998549 | E35: 13172.28192 | F35: 13539.08177
A36: 15 | B36: 133547.66 | C36: 13539.08177 | D36: 333.8691501 | E36: 13205.21262 | F36: 13539.08177
A37: 16 | B37: 120342.4474 | C37: 13539.08177 | D37: 300.8561185 | E37: 13238.22566 | F37: 13539.08177
A38: 17 | B38: 107104.2217 | C38: 13539.08177 | D38: 267.7605544 | E38: 13271.32122 | F38: 13539.08177
A39: 18 | B39: 93832.90053 | C39: 13539.08177 | D39: 234.5822513 | E39: 13304.49952 | F39: 13539.08177
A40: 19 | B40: 80528.401 | C40: 13539.08177 | D40: 201.3210025 | E40: 13337.76077 | F40: 13539.08177
A41: 20 | B41: 67190.64023 | C41: 13539.08177 | D41: 167.9766006 | E41: 13371.10517 | F41: 13539.08177
A42: 21 | B42: 53819.53506 | C42: 13539.08177 | D42: 134.5488377 | E42: 13404.53294 | F42: 13539.08177
A43: 22 | B43: 40415.00212 | C43: 13539.08177 | D43: 101.0375053 | E43: 13438.04427 | F43: 13539.08177
A44: 23 | B44: 26976.95786 | C44: 13539.08177 | D44: 67.44239464 | E44: 13471.63938 | F44: 13539.08177
A45: 24 | B45: 13505.31848 | C45: 13539.08177 | D45: 33.76329619 | E45: 13505.31848 | F45: 13539.08177
A46: TOTAL | C46: 324937.9626 | D46: 9937.962565 | E46: 315000 | F46: 324937.9626

Sheet Escenarios
A2: Escenario Elegido
B3: Inicial | C3: a los 6 meses | D3: a los 15 meses | E3: Devolucion a los 48 meses | F3: Devolucion a los 60 meses | H3: Aporte | I3: Devuelve
A4: Aportes | B4: 350000 | C4: 535000 | D4: 532000 | E4: -815000 | F4: -815000 | G4: Aportes | H4: =SUM(B4:D4) -> 1417000 | I4: =E4+F4 -> -1630000
A5: Prestamo | B5: 300000 | C5: con dos años de gracias - sistema frances | G5: Prestamo | H5: =B5 -> 300000
A6: Tasa prestamo | B6: 0.05 | C6: % anual | G6: Total | H6: =H4+H5 -> 1717000
B8: Momento 0 | C8: MES 1 | D8: MES 2 | E8: MES 3 | F8: MES 4 | G8: MES 5 | H8: MES 6 | I8: MES 7 | J8: MES 8 | K8: MES 9 | L8: MES 10 | M8: MES 11 | N8: MES 12 | O8: MES 13 | P8: MES 14 | Q8: MES 15 | R8: MES 16 | S8: MES 17 | T8: MES 18 | U8: MES 19 | V8: MES 20 | W8: MES 21 | X8: MES 22 | Y8: MES 23 | Z8: MES 24 | AA8: MES 25 | AB8: MES 26 | AC8: MES 27 | AD8: MES 28 | AE8: MES 29 | AF8: MES 30 | AG8: MES 31 | AH8: MES 32 | AI8: MES 33 | AJ8: MES 34 | AK8: MES 35 | AL8: MES 36 | AM8: MES 37 | AN8: MES 38 | AO8: MES 39 | AP8: MES 40 | AQ8: MES 41 | AR8: MES 42 | AS8: MES 43 | AT8: MES 44 | AU8: MES 45 | AV8: MES 46 | AW8: MES 47 | AX8: MES 48 | AY8: MES 49 | AZ8: MES 50 | BA8: MES 51 | BB8: MES 52 | BC8: MES 53 | BD8: MES 54 | BE8: MES 55 | BF8: MES 56 | BG8: MES 57 | BH8: MES 58 | BI8: MES 59 | BJ8: MES 60
A9: Meses | B9: 0 | C9: 1 | D9: 2 | E9: 3 | F9: 4 | G9: 5 | H9: 6 | I9: 7 | J9: 8 | K9: 9 | L9: 10 | M9: 11 | N9: 12 | O9: 13 | P9: 14 | Q9: 15 | R9: 16 | S9: 17 | T9: 18 | U9: 19 | V9: 20 | W9: 21 | X9: 22 | Y9: 23 | Z9: 24 | AA9: 25 | AB9: 26 | AC9: 27 | AD9: 28 | AE9: 29 | AF9: 30 | AG9: 31 | AH9: 32 | AI9: 33 | AJ9: 34 | AK9: 35 | AL9: 36 | AM9: 37 | AN9: 38 | AO9: 39 | AP9: 40 | AQ9: 41 | AR9: 42 | AS9: 43 | AT9: 44 | AU9: 45 | AV9: 46 | AW9: 47 | AX9: 48 | AY9: 49 | AZ9: 50 | BA9: 51 | BB9: 52 | BC9: 53 | BD9: 54 | BE9: 55 | BF9: 56 | BG9: 57 | BH9: 58 | BI9: 59 | BJ9: 60
A10: NOPAT | B10: -10000 | C10: -48845.45583 | D10: -48566.79099 | E10: -48249.46859 | F10: -48131.89189 | G10: -48006.27648 | H10: -47864.84006 | I10: -47703.95164 | J10: -47528.53926 | K10: -47332.20564 | L10: -47111.05963 | M10: -46863.63199 | N10: -47493.79945 | O10: -69556.73174 | P10: -68295.32209 | Q10: -66889.77766 | R10: -65357.72797 | S10: -63683.67146 | T10: -61850.95656 | U10: -59851.91856 | V10: -57639.42857 | W10: -55199.96691 | X10: -52537.07556 | Y10: -49629.9622 | Z10: -47368.07727 | AA10: -49311.27336 | AB10: -39873.27132 | AC10: -29502.86607 | AD10: -18460.99309 | AE10: -6766.645829 | AF10: 4767.515702 | AG10: 15889.71491 | AH10: 27657.67872 | AI10: 40106.4632 | AJ10: 53270.71303 | AK10: 67198.14682 | AL10: 83457.82078 | AM10: 103620.2078 | AN10: 125559.3013 | AO10: 148505.1239 | AP10: 172101.0133 | AQ10: 196275.2858 | AR10: 221019.5871 | AS10: 246344.6961 | AT10: 272264.6608 | AU10: 298795.3453 | AV10: 325952.6138 | AW10: 353746.9412 | AX10: 389412.7245 | AY10: 424691.8416 | AZ10: 462034.6771 | BA10: 499841.1589 | BB10: 537453.7431 | BC10: 574710.5111 | BD10: 611572.7106 | BE10: 648031.5182 | BF10: 684089.8327 | BG10: 719753.8852 | BH10: 755022.6286 | BI10: 789904.4522 | BJ10: 840023.1687
A11: Aporte + Prestamo | B11: 650000 | C11: 0 | D11: 0 | E11: 0 | F11: 0 | G11: 0 | H11: 0 | I11: 535000 | J11: 0 | K11: 0 | L11: 0 | M11: 0 | N11: 0 | O11: 0 | P11: 0 | Q11: 532000 | R11: 0 | S11: 0 | T11: 0 | U11: 0 | V11: 0 | W11: 0 | X11: 0 | Y11: 0 | Z11: 0 | AA11: 0 | AB11: 0 | AC11: 0 | AD11: 0 | AE11: 0 | AF11: 0 | AG11: 0 | AH11: 0 | AI11: 0 | AK11: 0 | AL11: 0 | AM11: 0 | AN11: 0 | AO11: 0 | AP11: 0 | AQ11: 0 | AR11: 0 | AS11: 0 | AT11: 0 | AU11: 0 | AV11: 0 | AW11: 0 | AX11: -815000 | AY11: 0 | AZ11: 0 | BA11: 0 | BB11: 0 | BC11: 0 | BD11: 0 | BE11: 0 | BF11: 0 | BG11: 0 | BH11: 0 | BI11: 0 | BJ11: -815000
A12: Intereses | B12: 0 | C12: 0 | D12: 0 | E12: 0 | F12: 0 | G12: 0 | H12: 0 | I12: 0 | J12: 0 | K12: 0 | L12: 0 | M12: 0 | N12: 0 | O12: 0 | P12: 0 | Q12: 0 | R12: 0 | S12: 0 | T12: 0 | U12: 0 | V12: 0 | W12: 0 | X12: 0 | Y12: 0 | Z12: 0 | AA12: 787.5 | AB12: 755.6210456 | AC12: 723.6623937 | AD12: 691.6238453 | AE12: 659.5052005 | AF12: 627.306259 | AG12: 595.0268203 | AH12: 562.6666829 | AI12: 530.2256451 | AJ12: 497.7035048 | AK12: 465.1000592 | AL12: 432.4151049 | AM12: 399.6484382 | AN12: 366.7998549 | AO12: 333.8691501 | AP12: 300.8561185 | AQ12: 267.7605544 | AR12: 234.5822513 | AS12: 201.3210025 | AT12: 167.9766006 | AU12: 134.5488377 | AV12: 101.0375053 | AW12: 67.44239464 | AX12: 33.76329619 | AY12: 0 | AZ12: 0 | BA12: 0 | BB12: 0 | BC12: 0 | BD12: 0 | BE12: 0 | BF12: 0 | BG12: 0 | BH12: 0 | BI12: 0 | BJ12: 0
A13: Amortizacion | B13: 0 | C13: 164.7 | D13: 164.7 | E13: 164.7 | F13: 164.7 | G13: 164.7 | H13: 164.7 | I13: 164.7 | J13: 164.7 | K13: 164.7 | L13: 164.7 | M13: 164.7 | N13: 164.7 | O13: 54.9 | P13: 54.9 | Q13: 54.9 | R13: 54.9 | S13: 54.9 | T13: 54.9 | U13: 54.9 | V13: 54.9 | W13: 54.9 | X13: 54.9 | Y13: 54.9 | Z13: 54.9 | AA13: 54.9 | AB13: 54.9 | AC13: 54.9 | AD13: 54.9 | AE13: 54.9 | AF13: 54.9 | AG13: 54.9 | AH13: 54.9 | AI13: 54.9 | AJ13: 54.9 | AK13: 54.9 | AL13: 54.9 | AM13: 54.9 | AN13: 54.9 | AO13: 54.9 | AP13: 54.9 | AQ13: 54.9 | AR13: 54.9 | AS13: 54.9 | AT13: 54.9 | AU13: 54.9 | AV13: 54.9 | AW13: 54.9 | AX13: 54.9 | AY13: 54.9 | AZ13: 54.9 | BA13: 54.9 | BB13: 54.9 | BC13: 54.9 | BD13: 54.9 | BE13: 54.9 | BF13: 54.9 | BG13: 54.9 | BH13: 54.9 | BI13: 54.9 | BJ13: 54.9
A14: INGRESOS | B14: 640000 | C14: -48845.45583 | D14: -48566.79099 | E14: -48249.46859 | F14: -48131.89189 | G14: -48006.27648 | H14: -47864.84006 | I14: 487296.0484 | J14: -47528.53926 | K14: -47332.20564 | L14: -47111.05963 | M14: -46863.63199 | N14: -47493.79945 | O14: -69556.73174 | P14: -68295.32209 | Q14: 465110.2223 | R14: -65357.72797 | S14: -63683.67146 | T14: -61850.95656 | U14: -59851.91856 | V14: -57639.42857 | W14: -55199.96691 | X14: -52537.07556 | Y14: -49629.9622 | Z14: -47368.07727 | AA14: -49311.27336 | AB14: -39873.27132 | AC14: -29502.86607 | AD14: -18460.99309 | AE14: -6766.645829 | AF14: 4767.515702 | AG14: 15889.71491 | AH14: 27657.67872 | AI14: 40106.4632 | AJ14: 53270.71303 | AK14: 67198.14682 | AL14: 83457.82078 | AM14: 103620.2078 | AN14: 125559.3013 | AO14: 148505.1239 | AP14: 172101.0133 | AQ14: 196275.2858 | AR14: 221019.5871 | AS14: 246344.6961 | AT14: 272264.6608 | AU14: 298795.3453 | AV14: 325952.6138 | AW14: 353746.9412 | AX14: -425587.2755 | AY14: 424691.8416 | AZ14: 462034.6771 | BA14: 499841.1589 | BB14: 537453.7431 | BC14: 574710.5111 | BD14: 611572.7106 | BE14: 648031.5182 | BF14: 684089.8327 | BG14: 719753.8852 | BH14: 755022.6286 | BI14: 789904.4522 | BJ14: 25023.16868
A15: CAPEX | B15: 9882 | C15: 0 | D15: 0 | E15: 0 | F15: 0 | G15: 0 | H15: 0 | I15: 0 | J15: 0 | K15: 0 | L15: 0 | M15: 0 | N15: 0 | O15: 3294 | P15: 0 | Q15: 0 | R15: 0 | S15: 0 | T15: 0 | U15: 0 | V15: 0 | W15: 0 | X15: 0 | Y15: 0 | Z15: 0 | AA15: 0 | AB15: 0 | AC15: 0 | AD15: 0 | AE15: 0 | AF15: 0 | AG15: 0 | AH15: 0 | AI15: 0 | AJ15: 0 | AK15: 0 | AL15: 0 | AM15: 0 | AN15: 0 | AO15: 0 | AP15: 0 | AQ15: 0 | AR15: 0 | AS15: 0 | AT15: 0 | AU15: 0 | AV15: 0 | AW15: 0 | AX15: 0 | AY15: 0 | AZ15: 0 | BA15: 0 | BB15: 0 | BC15: 0 | BD15: 0 | BE15: 0 | BF15: 0 | BG15: 0 | BH15: 0 | BI15: 0 | BJ15: 0
A16: Cuota de Prestamo | B16: 0 | C16: 0 | D16: 0 | E16: 0 | F16: 0 | G16: 0 | H16: 0 | I16: 0 | J16: 0 | K16: 0 | L16: 0 | M16: 0 | N16: 0 | O16: 0 | P16: 0 | Q16: 0 | R16: 0 | S16: 0 | T16: 0 | U16: 0 | V16: 0 | W16: 0 | X16: 0 | Y16: 0 | Z16: 0 | AA16: 13539.08177 | AB16: 13539.08177 | AC16: 13539.08177 | AD16: 13539.08177 | AE16: 13539.08177 | AF16: 13539.08177 | AG16: 13539.08177 | AH16: 13539.08177 | AI16: 13539.08177 | AJ16: 13539.08177 | AK16: 13539.08177 | AL16: 13539.08177 | AM16: 13539.08177 | AN16: 13539.08177 | AO16: 13539.08177 | AP16: 13539.08177 | AQ16: 13539.08177 | AR16: 13539.08177 | AS16: 13539.08177 | AT16: 13539.08177 | AU16: 13539.08177 | AV16: 13539.08177 | AW16: 13539.08177 | AX16: 13539.08177 | AY16: 0 | AZ16: 0 | BA16: 0 | BB16: 0 | BC16: 0 | BD16: 0 | BE16: 0 | BF16: 0 | BG16: 0 | BH16: 0 | BI16: 0 | BJ16: 0
A17: Inversión | B17: 169622.25 | C17: 0 | D17: 0 | E17: 0 | F17: 0 | G17: 0 | H17: 0 | I17: 0 | J17: 0 | K17: 0 | L17: 0 | M17: 0 | N17: 0 | O17: 0 | P17: 0 | Q17: 0 | R17: 0 | S17: 0 | T17: 0 | U17: 0 | V17: 0 | W17: 0 | X17: 0 | Y17: 0 | Z17: 0 | AA17: 0 | AB17: 0 | AC17: 0 | AD17: 0 | AE17: 0 | AF17: 0 | AG17: 0 | AH17: 0 | AI17: 0 | AJ17: 0 | AK17: 0 | AL17: 0 | AM17: 0 | AN17: 0 | AO17: 0 | AP17: 0 | AQ17: 0 | AR17: 0 | AS17: 0 | AT17: 0 | AU17: 0 | AV17: 0 | AW17: 0 | AX17: 0 | AY17: 0 | AZ17: 0 | BA17: 0 | BB17: 0 | BC17: 0 | BD17: 0 | BE17: 0 | BF17: 0 | BG17: 0 | BH17: 0 | BI17: 0 | BJ17: 0
A18: EGRESOS | B18: 179504.25 | C18: 0 | D18: 0 | E18: 0 | F18: 0 | G18: 0 | H18: 0 | I18: 0 | J18: 0 | K18: 0 | L18: 0 | M18: 0 | N18: 0 | O18: 3294 | P18: 0 | Q18: 0 | R18: 0 | S18: 0 | T18: 0 | U18: 0 | V18: 0 | W18: 0 | X18: 0 | Y18: 0 | Z18: 0 | AA18: 13539.08177 | AB18: 13539.08177 | AC18: 13539.08177 | AD18: 13539.08177 | AE18: 13539.08177 | AF18: 13539.08177 | AG18: 13539.08177 | AH18: 13539.08177 | AI18: 13539.08177 | AJ18: 13539.08177 | AK18: 13539.08177 | AL18: 13539.08177 | AM18: 13539.08177 | AN18: 13539.08177 | AO18: 13539.08177 | AP18: 13539.08177 | AQ18: 13539.08177 | AR18: 13539.08177 | AS18: 13539.08177 | AT18: 13539.08177 | AU18: 13539.08177 | AV18: 13539.08177 | AW18: 13539.08177 | AX18: 13539.08177 | AY18: 0 | AZ18: 0 | BA18: 0 | BB18: 0 | BC18: 0 | BD18: 0 | BE18: 0 | BF18: 0 | BG18: 0 | BH18: 0 | BI18: 0 | BJ18: 0
A20: FCFF | B20: 460495.75 | C20: -48845.45583 | D20: -48566.79099 | E20: -48249.46859 | F20: -48131.89189 | G20: -48006.27648 | H20: -47864.84006 | I20: 487296.0484 | J20: -47528.53926 | K20: -47332.20564 | L20: -47111.05963 | M20: -46863.63199 | N20: -47493.79945 | O20: -72850.73174 | P20: -68295.32209 | Q20: 465110.2223 | R20: -65357.72797 | S20: -63683.67146 | T20: -61850.95656 | U20: -59851.91856 | V20: -57639.42857 | W20: -55199.96691 | X20: -52537.07556 | Y20: -49629.9622 | Z20: -47368.07727 | AA20: -62850.35513 | AB20: -53412.3531 | AC20: -43041.94784 | AD20: -32000.07486 | AE20: -20305.7276 | AF20: -8771.566072 | AG20: 2350.633131 | AH20: 14118.59695 | AI20: 26567.38143 | AJ20: 39731.63126 | AK20: 53659.06504 | AL20: 69918.73901 | AM20: 90081.12598 | AN20: 112020.2195 | AO20: 134966.0421 | AP20: 158561.9315 | AQ20: 182736.204 | AR20: 207480.5053 | AS20: 232805.6143 | AT20: 258725.579 | AU20: 285256.2635 | AV20: 312413.532 | AW20: 340207.8594 | AX20: -439126.3573 | AY20: 424691.8416 | AZ20: 462034.6771 | BA20: 499841.1589 | BB20: 537453.7431 | BC20: 574710.5111 | BD20: 611572.7106 | BE20: 648031.5182 | BF20: 684089.8327 | BG20: 719753.8852 | BH20: 755022.6286 | BI20: 789904.4522 | BJ20: 25023.16868
A21: Flujo Efectivo | B21: 460495.75 | C21: 411650.2942 | D21: 363083.5032 | E21: 314834.0346 | F21: 266702.1427 | G21: 218695.8662 | H21: 170831.0261 | I21: 658127.0745 | J21: 610598.5352 | K21: 563266.3296 | L21: 516155.27 | M21: 469291.638 | N21: 421797.8385 | O21: 348947.1068 | P21: 280651.7847 | Q21: 745762.007 | R21: 680404.2791 | S21: 616720.6076 | T21: 554869.651 | U21: 495017.7325 | V21: 437378.3039 | W21: 382178.337 | X21: 329641.2614 | Y21: 280011.2992 | Z21: 232643.222 | AA21: 169792.8668 | AB21: 116380.5137 | AC21: 73338.56588 | AD21: 41338.49102 | AE21: 21032.76342 | AF21: 12261.19735 | AG21: 14611.83048 | AH21: 28730.42743 | AI21: 55297.80885 | AJ21: 95029.44011 | AK21: 148688.5052 | AL21: 218607.2442 | AM21: 308688.3701 | AN21: 420708.5896 | AO21: 555674.6317 | AP21: 714236.5633 | AQ21: 896972.7673 | AR21: 1104453.273 | AS21: 1337258.887 | AT21: 1595984.466 | AU21: 1881240.729 | AV21: 2193654.261 | AW21: 2533862.121 | AX21: 2094735.764 | AY21: 2519427.605 | AZ21: 2981462.282 | BA21: 3481303.441 | BB21: 4018757.184 | BC21: 4593467.695 | BD21: 5205040.406 | BE21: 5853071.924 | BF21: 6537161.757 | BG21: 7256915.642 | BH21: 8011938.271 | BI21: 8801842.723 | BJ21: 8826865.892
A23: VAN | B23: 259784.0205
A24: Tasa de descuento | B24: 0.065
A25: TIR | B25: 0.1010140163
A26: Proyecto Viable | B26: VIABLE
A28: Escenario 2
B29: Inicial | C29: a los 6 meses | D29: a los 15 meses | E29: Devolucion a los 48 meses | F29: Devolucion a los 60 meses | H29: Aporte | I29: Devuelve
A30: Aportes | B30: 302000 | C30: 400000 | D30: 300000 | E30: -501000 | F30: -501000 | G30: Aportes | H30: 1002000 | I30: -1002000
A31: Prestamo | B31: 715000 | C31: con dos años de gracias - sistema frances | G31: Prestamo | H31: 715000
A32: Tasa prestamo | B32: 0.05 | C32: % anual | G32: Total | H32: 1717000
B35: Momento 0 | C35: MES 1 | D35: MES 2 | E35: MES 3 | F35: MES 4 | G35: MES 5 | H35: MES 6 | I35: MES 7 | J35: MES 8 | K35: MES 9 | L35: MES 10 | M35: MES 11 | N35: MES 12 | O35: MES 13 | P35: MES 14 | Q35: MES 15 | R35: MES 16 | S35: MES 17 | T35: MES 18 | U35: MES 19 | V35: MES 20 | W35: MES 21 | X35: MES 22 | Y35: MES 23 | Z35: MES 24 | AA35: MES 25 | AB35: MES 26 | AC35: MES 27 | AD35: MES 28 | AE35: MES 29 | AF35: MES 30 | AG35: MES 31 | AH35: MES 32 | AI35: MES 33 | AJ35: MES 34 | AK35: MES 35 | AL35: MES 36 | AM35: MES 37 | AN35: MES 38 | AO35: MES 39 | AP35: MES 40 | AQ35: MES 41 | AR35: MES 42 | AS35: MES 43 | AT35: MES 44 | AU35: MES 45 | AV35: MES 46 | AW35: MES 47 | AX35: MES 48 | AY35: MES 49 | AZ35: MES 50 | BA35: MES 51 | BB35: MES 52 | BC35: MES 53 | BD35: MES 54 | BE35: MES 55 | BF35: MES 56 | BG35: MES 57 | BH35: MES 58 | BI35: MES 59 | BJ35: MES 60
A36: Meses | B36: 0 | C36: 1 | D36: 2 | E36: 3 | F36: 4 | G36: 5 | H36: 6 | I36: 7 | J36: 8 | K36: 9 | L36: 10 | M36: 11 | N36: 12 | O36: 13 | P36: 14 | Q36: 15 | R36: 16 | S36: 17 | T36: 18 | U36: 19 | V36: 20 | W36: 21 | X36: 22 | Y36: 23 | Z36: 24 | AA36: 25 | AB36: 26 | AC36: 27 | AD36: 28 | AE36: 29 | AF36: 30 | AG36: 31 | AH36: 32 | AI36: 33 | AJ36: 34 | AK36: 35 | AL36: 36 | AM36: 37 | AN36: 38 | AO36: 39 | AP36: 40 | AQ36: 41 | AR36: 42 | AS36: 43 | AT36: 44 | AU36: 45 | AV36: 46 | AW36: 47 | AX36: 48 | AY36: 49 | AZ36: 50 | BA36: 51 | BB36: 52 | BC36: 53 | BD36: 54 | BE36: 55 | BF36: 56 | BG36: 57 | BH36: 58 | BI36: 59 | BJ36: 60
A37: NOPAT | B37: -10000 | C37: -48845.45583 | D37: -48566.79099 | E37: -48249.46859 | F37: -48131.89189 | G37: -48006.27648 | H37: -47864.84006 | I37: -47703.95164 | J37: -47528.53926 | K37: -47332.20564 | L37: -47111.05963 | M37: -46863.63199 | N37: -47493.79945 | O37: -69556.73174 | P37: -68295.32209 | Q37: -66889.77766 | R37: -65357.72797 | S37: -63683.67146 | T37: -61850.95656 | U37: -59851.91856 | V37: -57639.42857 | W37: -55199.96691 | X37: -52537.07556 | Y37: -49629.9622 | Z37: -47368.07727 | AA37: -50389.41883 | AB37: -40907.77216 | AC37: -30493.61316 | AD37: -19407.87705 | AE37: -7669.556999 | AF37: 4750.013553 | AG37: 15197.27471 | AH37: 27002.89643 | AI37: 39489.43295 | AJ37: 52691.52921 | AK37: 66656.90403 | AL37: 82944.85167 | AM37: 103146.1094 | AN37: 125124.1708 | AO37: 148109.0587 | AP37: 171744.1111 | AQ37: 195957.6445 | AR37: 220741.3048 | AS37: 246105.8713 | AT37: 272065.392 | AU37: 298635.7315 | AV37: 325832.7542 | AW37: 353666.935 | AX37: 389371.8944 | AY37: 424691.8416 | AZ37: 462034.6771 | BA37: 499841.1589 | BB37: 537453.7431 | BC37: 574710.5111 | BD37: 611572.7106 | BE37: 648031.5182 | BF37: 684089.8327 | BG37: 719753.8852 | BH37: 755022.6286 | BI37: 789904.4522 | BJ37: 840023.1687
A38: Aporte + Prestamo | B38: 1017000 | C38: 0 | D38: 0 | E38: 0 | F38: 0 | G38: 0 | H38: 0 | I38: 400000 | J38: 0 | K38: 0 | L38: 0 | M38: 0 | N38: 0 | O38: 0 | P38: 0 | Q38: 300000 | R38: 0 | S38: 0 | T38: 0 | U38: 0 | V38: 0 | W38: 0 | X38: 0 | Y38: 0 | Z38: 0 | AA38: 0 | AB38: 0 | AC38: 0 | AD38: 0 | AE38: 0 | AF38: 0 | AG38: 0 | AH38: 0 | AI38: 0 | AK38: 0 | AL38: 0 | AM38: 0 | AN38: 0 | AO38: 0 | AP38: 0 | AQ38: 0 | AR38: 0 | AS38: 0 | AT38: 0 | AU38: 0 | AV38: 0 | AW38: 0 | AX38: -501000 | AY38: 0 | AZ38: 0 | BA38: 0 | BB38: 0 | BC38: 0 | BD38: 0 | BE38: 0 | BF38: 0 | BG38: 0 | BH38: 0 | BI38: 0 | BJ38: -501000
A39: Intereses | B39: 0 | C39: 0 | D39: 0 | E39: 0 | F39: 0 | G39: 0 | H39: 0 | I39: 0 | J39: 0 | K39: 0 | L39: 0 | M39: 0 | N39: 0 | O39: 0 | P39: 0 | Q39: 0 | R39: 0 | S39: 0 | T39: 0 | U39: 0 | V39: 0 | W39: 0 | X39: 0 | Y39: 0 | Z39: 0 | AA39: 1825 | AB39: 1751.121788 | AC39: 1677.058881 | AD39: 1602.810816 | AE39: 1528.377131 | AF39: 1453.757362 | AG39: 1378.951044 | AH39: 1303.95771 | AI39: 1228.776892 | AJ39: 1153.408122 | AK39: 1077.850931 | AL39: 1002.104846 | AM39: 926.1693965 | AN39: 850.0441081 | AO39: 773.7285065 | AP39: 697.2221159 | AQ39: 620.5244593 | AR39: 543.6350586 | AS39: 466.5534344 | AT39: 389.2791061 | AU39: 311.811592 | AV39: 234.1504091 | AW39: 156.2950733 | AX39: 78.24509911 | AY39: 0 | AZ39: 0 | BA39: 0 | BB39: 0 | BC39: 0 | BD39: 0 | BE39: 0 | BF39: 0 | BG39: 0 | BH39: 0 | BI39: 0 | BJ39: 0
A40: Amortizacion | B40: 0 | C40: 164.7 | D40: 164.7 | E40: 164.7 | F40: 164.7 | G40: 164.7 | H40: 164.7 | I40: 164.7 | J40: 164.7 | K40: 164.7 | L40: 164.7 | M40: 164.7 | N40: 164.7 | O40: 54.9 | P40: 54.9 | Q40: 54.9 | R40: 54.9 | S40: 54.9 | T40: 54.9 | U40: 54.9 | V40: 54.9 | W40: 54.9 | X40: 54.9 | Y40: 54.9 | Z40: 54.9 | AA40: 54.9 | AB40: 54.9 | AC40: 54.9 | AD40: 54.9 | AE40: 54.9 | AF40: 54.9 | AG40: 54.9 | AH40: 54.9 | AI40: 54.9 | AJ40: 54.9 | AK40: 54.9 | AL40: 54.9 | AM40: 54.9 | AN40: 54.9 | AO40: 54.9 | AP40: 54.9 | AQ40: 54.9 | AR40: 54.9 | AS40: 54.9 | AT40: 54.9 | AU40: 54.9 | AV40: 54.9 | AW40: 54.9 | AX40: 54.9 | AY40: 54.9 | AZ40: 54.9 | BA40: 54.9 | BB40: 54.9 | BC40: 54.9 | BD40: 54.9 | BE40: 54.9 | BF40: 54.9 | BG40: 54.9 | BH40: 54.9 | BI40: 54.9 | BJ40: 54.9
A41: INGRESOS | B41: 1007000 | C41: -48845.45583 | D41: -48566.79099 | E41: -48249.46859 | F41: -48131.89189 | G41: -48006.27648 | H41: -47864.84006 | I41: 352296.0484 | J41: -47528.53926 | K41: -47332.20564 | L41: -47111.05963 | M41: -46863.63199 | N41: -47493.79945 | O41: -69556.73174 | P41: -68295.32209 | Q41: 233110.2223 | R41: -65357.72797 | S41: -63683.67146 | T41: -61850.95656 | U41: -59851.91856 | V41: -57639.42857 | W41: -55199.96691 | X41: -52537.07556 | Y41: -49629.9622 | Z41: -47368.07727 | AA41: -50389.41883 | AB41: -40907.77216 | AC41: -30493.61316 | AD41: -19407.87705 | AE41: -7669.556999 | AF41: 4750.013553 | AG41: 15197.27471 | AH41: 27002.89643 | AI41: 39489.43295 | AJ41: 52691.52921 | AK41: 66656.90403 | AL41: 82944.85167 | AM41: 103146.1094 | AN41: 125124.1708 | AO41: 148109.0587 | AP41: 171744.1111 | AQ41: 195957.6445 | AR41: 220741.3048 | AS41: 246105.8713 | AT41: 272065.392 | AU41: 298635.7315 | AV41: 325832.7542 | AW41: 353666.935 | AX41: -111628.1056 | AY41: 424691.8416 | AZ41: 462034.6771 | BA41: 499841.1589 | BB41: 537453.7431 | BC41: 574710.5111 | BD41: 611572.7106 | BE41: 648031.5182 | BF41: 684089.8327 | BG41: 719753.8852 | BH41: 755022.6286 | BI41: 789904.4522 | BJ41: 339023.1687
A42: CAPEX | B42: 9882 | C42: 0 | D42: 0 | E42: 0 | F42: 0 | G42: 0 | H42: 0 | I42: 0 | J42: 0 | K42: 0 | L42: 0 | M42: 0 | N42: 0 | O42: 3294 | P42: 0 | Q42: 0 | R42: 0 | S42: 0 | T42: 0 | U42: 0 | V42: 0 | W42: 0 | X42: 0 | Y42: 0 | Z42: 0 | AA42: 0 | AB42: 0 | AC42: 0 | AD42: 0 | AE42: 0 | AF42: 0 | AG42: 0 | AH42: 0 | AI42: 0 | AJ42: 0 | AK42: 0 | AL42: 0 | AM42: 0 | AN42: 0 | AO42: 0 | AP42: 0 | AQ42: 0 | AR42: 0 | AS42: 0 | AT42: 0 | AU42: 0 | AV42: 0 | AW42: 0 | AX42: 0 | AY42: 0 | AZ42: 0 | BA42: 0 | BB42: 0 | BC42: 0 | BD42: 0 | BE42: 0 | BF42: 0 | BG42: 0 | BH42: 0 | BI42: 0 | BJ42: 0
A43: Cuota de Prestamo | B43: 0 | C43: 0 | D43: 0 | E43: 0 | F43: 0 | G43: 0 | H43: 0 | I43: 0 | J43: 0 | K43: 0 | L43: 0 | M43: 0 | N43: 0 | O43: 0 | P43: 0 | Q43: 0 | R43: 0 | S43: 0 | T43: 0 | U43: 0 | V43: 0 | W43: 0 | X43: 0 | Y43: 0 | Z43: 0 | AA43: 31376.28475 | AB43: 31376.28475 | AC43: 31376.28475 | AD43: 31376.28475 | AE43: 31376.28475 | AF43: 31376.28475 | AG43: 31376.28475 | AH43: 31376.28475 | AI43: 31376.28475 | AJ43: 31376.28475 | AK43: 31376.28475 | AL43: 31376.28475 | AM43: 31376.28475 | AN43: 31376.28475 | AO43: 31376.28475 | AP43: 31376.28475 | AQ43: 31376.28475 | AR43: 31376.28475 | AS43: 31376.28475 | AT43: 31376.28475 | AU43: 31376.28475 | AV43: 31376.28475 | AW43: 31376.28475 | AX43: 31376.28475 | AY43: 0 | AZ43: 0 | BA43: 0 | BB43: 0 | BC43: 0 | BD43: 0 | BE43: 0 | BF43: 0 | BG43: 0 | BH43: 0 | BI43: 0 | BJ43: 0
A44: Inversión | B44: 169622.25 | C44: 0 | D44: 0 | E44: 0 | F44: 0 | G44: 0 | H44: 0 | I44: 0 | J44: 0 | K44: 0 | L44: 0 | M44: 0 | N44: 0 | O44: 0 | P44: 0 | Q44: 0 | R44: 0 | S44: 0 | T44: 0 | U44: 0 | V44: 0 | W44: 0 | X44: 0 | Y44: 0 | Z44: 0 | AA44: 0 | AB44: 0 | AC44: 0 | AD44: 0 | AE44: 0 | AF44: 0 | AG44: 0 | AH44: 0 | AI44: 0 | AJ44: 0 | AK44: 0 | AL44: 0 | AM44: 0 | AN44: 0 | AO44: 0 | AP44: 0 | AQ44: 0 | AR44: 0 | AS44: 0 | AT44: 0 | AU44: 0 | AV44: 0 | AW44: 0 | AX44: 0 | AY44: 0 | AZ44: 0 | BA44: 0 | BB44: 0 | BC44: 0 | BD44: 0 | BE44: 0 | BF44: 0 | BG44: 0 | BH44: 0 | BI44: 0 | BJ44: 0
A45: EGRESOS | B45: 179504.25 | C45: 0 | D45: 0 | E45: 0 | F45: 0 | G45: 0 | H45: 0 | I45: 0 | J45: 0 | K45: 0 | L45: 0 | M45: 0 | N45: 0 | O45: 3294 | P45: 0 | Q45: 0 | R45: 0 | S45: 0 | T45: 0 | U45: 0 | V45: 0 | W45: 0 | X45: 0 | Y45: 0 | Z45: 0 | AA45: 31376.28475 | AB45: 31376.28475 | AC45: 31376.28475 | AD45: 31376.28475 | AE45: 31376.28475 | AF45: 31376.28475 | AG45: 31376.28475 | AH45: 31376.28475 | AI45: 31376.28475 | AJ45: 31376.28475 | AK45: 31376.28475 | AL45: 31376.28475 | AM45: 31376.28475 | AN45: 31376.28475 | AO45: 31376.28475 | AP45: 31376.28475 | AQ45: 31376.28475 | AR45: 31376.28475 | AS45: 31376.28475 | AT45: 31376.28475 | AU45: 31376.28475 | AV45: 31376.28475 | AW45: 31376.28475 | AX45: 31376.28475 | AY45: 0 | AZ45: 0 | BA45: 0 | BB45: 0 | BC45: 0 | BD45: 0 | BE45: 0 | BF45: 0 | BG45: 0 | BH45: 0 | BI45: 0 | BJ45: 0
A47: FCFF | B47: 827495.75 | C47: -48845.45583 | D47: -48566.79099 | E47: -48249.46859 | F47: -48131.89189 | G47: -48006.27648 | H47: -47864.84006 | I47: 352296.0484 | J47: -47528.53926 | K47: -47332.20564 | L47: -47111.05963 | M47: -46863.63199 | N47: -47493.79945 | O47: -72850.73174 | P47: -68295.32209 | Q47: 233110.2223 | R47: -65357.72797 | S47: -63683.67146 | T47: -61850.95656 | U47: -59851.91856 | V47: -57639.42857 | W47: -55199.96691 | X47: -52537.07556 | Y47: -49629.9622 | Z47: -47368.07727 | AA47: -81765.70357 | AB47: -72284.05691 | AC47: -61869.8979 | AD47: -50784.16179 | AE47: -39045.84174 | AF47: -26626.27119 | AG47: -16179.01003 | AH47: -4373.388318 | AI47: 8113.148203 | AJ47: 21315.24446 | AK47: 35280.61928 | AL47: 51568.56693 | AM47: 71769.82462 | AN47: 93747.88603 | AO47: 116732.774 | AP47: 140367.8264 | AQ47: 164581.3597 | AR47: 189365.0201 | AS47: 214729.5865 | AT47: 240689.1073 | AU47: 267259.4468 | AV47: 294456.4694 | AW47: 322290.6503 | AX47: -143004.3903 | AY47: 424691.8416 | AZ47: 462034.6771 | BA47: 499841.1589 | BB47: 537453.7431 | BC47: 574710.5111 | BD47: 611572.7106 | BE47: 648031.5182 | BF47: 684089.8327 | BG47: 719753.8852 | BH47: 755022.6286 | BI47: 789904.4522 | BJ47: 339023.1687
A48: Flujo Efectivo | B48: 827495.75 | C48: 778650.2942 | D48: 730083.5032 | E48: 681834.0346 | F48: 633702.1427 | G48: 585695.8662 | H48: 537831.0261 | I48: 890127.0745 | J48: 842598.5352 | K48: 795266.3296 | L48: 748155.27 | M48: 701291.638 | N48: 653797.8385 | O48: 580947.1068 | P48: 512651.7847 | Q48: 745762.007 | R48: 680404.2791 | S48: 616720.6076 | T48: 554869.651 | U48: 495017.7325 | V48: 437378.3039 | W48: 382178.337 | X48: 329641.2614 | Y48: 280011.2992 | Z48: 232643.222 | AA48: 150877.5184 | AB48: 78593.46147 | AC48: 16723.56357 | AD48: -34060.59823 | AE48: -73106.43997 | AF48: -99732.71116 | AG48: -115911.7212 | AH48: -120285.1095 | AI48: -112171.9613 | AJ48: -90856.71685 | AK48: -55576.09757 | AL48: -4007.53064 | AM48: 67762.29398 | AN48: 161510.18 | AO48: 278242.954 | AP48: 418610.7804 | AQ48: 583192.1401 | AR48: 772557.1602 | AS48: 987286.7468 | AT48: 1227975.854 | AU48: 1495235.301 | AV48: 1789691.77 | AW48: 2111982.421 | AX48: 1968978.03 | AY48: 2393669.872 | AZ48: 2855704.549 | BA48: 3355545.708 | BB48: 3892999.451 | BC48: 4467709.962 | BD48: 5079282.673 | BE48: 5727314.191 | BF48: 6411404.023 | BG48: 7131157.909 | BH48: 7886180.537 | BI48: 8676084.99 | BJ48: 9015108.158
A50: VAN | B50: 56375.83977
A51: Tasa de descuento | B51: 0.065
A52: TIR | B52: 0.06994657492
A53: Proyecto Viable | B53: VIABLE
A56: Escenario 3
B57: Inicial | C57: a los 6 meses | D57: a los 15 meses | E57: Devolucion a los 48 meses | F57: Devolucion a los 60 meses | H57: Aporte | I57: Devuelve
A58: Aportes | B58: 350000 | C58: 535000 | D58: 532000 | E58: =-$H$6/2 -> -858500 | F58: =-$H$6/2 -> -858500 | G58: Aportes | H58: =SUM(B58:D58) -> 1417000 | I58: =E58+F58 -> -1717000
A59: Prestamo | B59: 300000 | C59: con dos años de gracias - sistema frances | G59: Prestamo | H59: =B59 -> 300000
A60: Tasa prestamo | B60: 0.05 | C60: % anual | G60: Total | H60: =H58+H59 -> 1717000
B62: Momento 0 | C62: MES 1 | D62: MES 2 | E62: MES 3 | F62: MES 4 | G62: MES 5 | H62: MES 6 | I62: MES 7 | J62: MES 8 | K62: MES 9 | L62: MES 10 | M62: MES 11 | N62: MES 12 | O62: MES 13 | P62: MES 14 | Q62: MES 15 | R62: MES 16 | S62: MES 17 | T62: MES 18 | U62: MES 19 | V62: MES 20 | W62: MES 21 | X62: MES 22 | Y62: MES 23 | Z62: MES 24 | AA62: MES 25 | AB62: MES 26 | AC62: MES 27 | AD62: MES 28 | AE62: MES 29 | AF62: MES 30 | AG62: MES 31 | AH62: MES 32 | AI62: MES 33 | AJ62: MES 34 | AK62: MES 35 | AL62: MES 36 | AM62: MES 37 | AN62: MES 38 | AO62: MES 39 | AP62: MES 40 | AQ62: MES 41 | AR62: MES 42 | AS62: MES 43 | AT62: MES 44 | AU62: MES 45 | AV62: MES 46 | AW62: MES 47 | AX62: MES 48 | AY62: MES 49 | AZ62: MES 50 | BA62: MES 51 | BB62: MES 52 | BC62: MES 53 | BD62: MES 54 | BE62: MES 55 | BF62: MES 56 | BG62: MES 57 | BH62: MES 58 | BI62: MES 59 | BJ62: MES 60
A63: Meses | B63: 0 | C63: 1 | D63: 2 | E63: 3 | F63: 4 | G63: 5 | H63: 6 | I63: 7 | J63: 8 | K63: 9 | L63: 10 | M63: 11 | N63: 12 | O63: 13 | P63: 14 | Q63: 15 | R63: 16 | S63: 17 | T63: 18 | U63: 19 | V63: 20 | W63: 21 | X63: 22 | Y63: 23 | Z63: 24 | AA63: 25 | AB63: 26 | AC63: 27 | AD63: 28 | AE63: 29 | AF63: 30 | AG63: 31 | AH63: 32 | AI63: 33 | AJ63: 34 | AK63: 35 | AL63: 36 | AM63: 37 | AN63: 38 | AO63: 39 | AP63: 40 | AQ63: 41 | AR63: 42 | AS63: 43 | AT63: 44 | AU63: 45 | AV63: 46 | AW63: 47 | AX63: 48 | AY63: 49 | AZ63: 50 | BA63: 51 | BB63: 52 | BC63: 53 | BD63: 54 | BE63: 55 | BF63: 56 | BG63: 57 | BH63: 58 | BI63: 59 | BJ63: 60
A64: NOPAT | B64: -10000 | C64: -48845.45583 | D64: -48566.79099 | E64: -48249.46859 | F64: -48131.89189 | G64: -48006.27648 | H64: -47864.84006 | I64: -47703.95164 | J64: -47528.53926 | K64: -47332.20564 | L64: -47111.05963 | M64: -46863.63199 | N64: -47493.79945 | O64: -69556.73174 | P64: -68295.32209 | Q64: -66889.77766 | R64: -65357.72797 | S64: -63683.67146 | T64: -61850.95656 | U64: -59851.91856 | V64: -57639.42857 | W64: -55199.96691 | X64: -52537.07556 | Y64: -49629.9622 | Z64: -47368.07727 | AA64: -49311.27336 | AB64: -39873.27132 | AC64: -29502.86607 | AD64: -18460.99309 | AE64: -6766.645829 | AF64: 5608.842002 | AG64: 15889.71491 | AH64: 27657.67872 | AI64: 40106.4632 | AJ64: 53270.71303 | AK64: 67198.14682 | AL64: 83457.82078 | AM64: 103620.2078 | AN64: 125559.3013 | AO64: 148505.1239 | AP64: 172101.0133 | AQ64: 196275.2858 | AR64: 221019.5871 | AS64: 246344.6961 | AT64: 272264.6608 | AU64: 298795.3453 | AV64: 325952.6138 | AW64: 353746.9412 | AX64: 389412.7245 | AY64: 424691.8416 | AZ64: 462034.6771 | BA64: 499841.1589 | BB64: 537453.7431 | BC64: 574710.5111 | BD64: 611572.7106 | BE64: 648031.5182 | BF64: 684089.8327 | BG64: 719753.8852 | BH64: 755022.6286 | BI64: 789904.4522 | BJ64: 840023.1687
A65: Aporte + Prestamo | B65: 650000 | C65: 0 | D65: 0 | E65: 0 | F65: 0 | G65: 0 | H65: 0 | I65: 535000 | J65: 0 | K65: 0 | L65: 0 | M65: 0 | N65: 0 | O65: 0 | P65: 0 | Q65: 532000 | R65: 0 | S65: 0 | T65: 0 | U65: 0 | V65: 0 | W65: 0 | X65: 0 | Y65: 0 | Z65: 0 | AA65: 0 | AB65: 0 | AC65: 0 | AD65: 0 | AE65: 0 | AF65: 0 | AG65: 0 | AH65: 0 | AI65: 0 | AK65: 0 | AL65: 0 | AM65: 0 | AN65: 0 | AO65: 0 | AP65: 0 | AQ65: 0 | AR65: 0 | AS65: 0 | AT65: 0 | AU65: 0 | AV65: 0 | AW65: 0 | AX65: -708500 | AY65: 0 | AZ65: 0 | BA65: 0 | BB65: 0 | BC65: 0 | BD65: 0 | BE65: 0 | BF65: 0 | BG65: 0 | BH65: 0 | BI65: 0 | BJ65: -708500
A66: Intereses | B66: 0 | C66: 0 | D66: 0 | E66: 0 | F66: 0 | G66: 0 | H66: 0 | I66: 0 | J66: 0 | K66: 0 | L66: 0 | M66: 0 | N66: 0 | O66: 0 | P66: 0 | Q66: 0 | R66: 0 | S66: 0 | T66: 0 | U66: 0 | V66: 0 | W66: 0 | X66: 0 | Y66: 0 | Z66: 0 | AA66: 787.5 | AB66: 755.6210456 | AC66: 723.6623937 | AD66: 691.6238453 | AE66: 659.5052005 | AF66: 627.306259 | AG66: 595.0268203 | AH66: 562.6666829 | AI66: 530.2256451 | AJ66: 497.7035048 | AK66: 465.1000592 | AL66: 432.4151049 | AM66: 399.6484382 | AN66: 366.7998549 | AO66: 333.8691501 | AP66: 300.8561185 | AQ66: 267.7605544 | AR66: 234.5822513 | AS66: 201.3210025 | AT66: 167.9766006 | AU66: 134.5488377 | AV66: 101.0375053 | AW66: 67.44239464 | AX66: 33.76329619 | AY66: 0 | AZ66: 0 | BA66: 0 | BB66: 0 | BC66: 0 | BD66: 0 | BE66: 0 | BF66: 0 | BG66: 0 | BH66: 0 | BI66: 0 | BJ66: 0
A67: Amortizacion | B67: 0 | C67: 164.7 | D67: 164.7 | E67: 164.7 | F67: 164.7 | G67: 164.7 | H67: 164.7 | I67: 164.7 | J67: 164.7 | K67: 164.7 | L67: 164.7 | M67: 164.7 | N67: 164.7 | O67: 54.9 | P67: 54.9 | Q67: 54.9 | R67: 54.9 | S67: 54.9 | T67: 54.9 | U67: 54.9 | V67: 54.9 | W67: 54.9 | X67: 54.9 | Y67: 54.9 | Z67: 54.9 | AA67: 54.9 | AB67: 54.9 | AC67: 54.9 | AD67: 54.9 | AE67: 54.9 | AF67: 54.9 | AG67: 54.9 | AH67: 54.9 | AI67: 54.9 | AJ67: 54.9 | AK67: 54.9 | AL67: 54.9 | AM67: 54.9 | AN67: 54.9 | AO67: 54.9 | AP67: 54.9 | AQ67: 54.9 | AR67: 54.9 | AS67: 54.9 | AT67: 54.9 | AU67: 54.9 | AV67: 54.9 | AW67: 54.9 | AX67: 54.9 | AY67: 54.9 | AZ67: 54.9 | BA67: 54.9 | BB67: 54.9 | BC67: 54.9 | BD67: 54.9 | BE67: 54.9 | BF67: 54.9 | BG67: 54.9 | BH67: 54.9 | BI67: 54.9 | BJ67: 54.9
A68: INGRESOS | B68: 640000 | C68: -48845.45583 | D68: -48566.79099 | E68: -48249.46859 | F68: -48131.89189 | G68: -48006.27648 | H68: -47864.84006 | I68: 487296.0484 | J68: -47528.53926 | K68: -47332.20564 | L68: -47111.05963 | M68: -46863.63199 | N68: -47493.79945 | O68: -69556.73174 | P68: -68295.32209 | Q68: 465110.2223 | R68: -65357.72797 | S68: -63683.67146 | T68: -61850.95656 | U68: -59851.91856 | V68: -57639.42857 | W68: -55199.96691 | X68: -52537.07556 | Y68: -49629.9622 | Z68: -47368.07727 | AA68: -49311.27336 | AB68: -39873.27132 | AC68: -29502.86607 | AD68: -18460.99309 | AE68: -6766.645829 | AF68: 5608.842002 | AG68: 15889.71491 | AH68: 27657.67872 | AI68: 40106.4632 | AJ68: 53270.71303 | AK68: 67198.14682 | AL68: 83457.82078 | AM68: 103620.2078 | AN68: 125559.3013 | AO68: 148505.1239 | AP68: 172101.0133 | AQ68: 196275.2858 | AR68: 221019.5871 | AS68: 246344.6961 | AT68: 272264.6608 | AU68: 298795.3453 | AV68: 325952.6138 | AW68: 353746.9412 | AX68: -319087.2755 | AY68: 424691.8416 | AZ68: 462034.6771 | BA68: 499841.1589 | BB68: 537453.7431 | BC68: 574710.5111 | BD68: 611572.7106 | BE68: 648031.5182 | BF68: 684089.8327 | BG68: 719753.8852 | BH68: 755022.6286 | BI68: 789904.4522 | BJ68: 131523.1687
A69: CAPEX | B69: 9882 | C69: 0 | D69: 0 | E69: 0 | F69: 0 | G69: 0 | H69: 0 | I69: 0 | J69: 0 | K69: 0 | L69: 0 | M69: 0 | N69: 0 | O69: 3294 | P69: 0 | Q69: 0 | R69: 0 | S69: 0 | T69: 0 | U69: 0 | V69: 0 | W69: 0 | X69: 0 | Y69: 0 | Z69: 0 | AA69: 0 | AB69: 0 | AC69: 0 | AD69: 0 | AE69: 0 | AF69: 0 | AG69: 0 | AH69: 0 | AI69: 0 | AJ69: 0 | AK69: 0 | AL69: 0 | AM69: 0 | AN69: 0 | AO69: 0 | AP69: 0 | AQ69: 0 | AR69: 0 | AS69: 0 | AT69: 0 | AU69: 0 | AV69: 0 | AW69: 0 | AX69: 0 | AY69: 0 | AZ69: 0 | BA69: 0 | BB69: 0 | BC69: 0 | BD69: 0 | BE69: 0 | BF69: 0 | BG69: 0 | BH69: 0 | BI69: 0 | BJ69: 0
A70: Cuota de Prestamo | B70: 0 | C70: 0 | D70: 0 | E70: 0 | F70: 0 | G70: 0 | H70: 0 | I70: 0 | J70: 0 | K70: 0 | L70: 0 | M70: 0 | N70: 0 | O70: 0 | P70: 0 | Q70: 0 | R70: 0 | S70: 0 | T70: 0 | U70: 0 | V70: 0 | W70: 0 | X70: 0 | Y70: 0 | Z70: 0 | AA70: 13539.08177 | AB70: 13539.08177 | AC70: 13539.08177 | AD70: 13539.08177 | AE70: 13539.08177 | AF70: 13539.08177 | AG70: 13539.08177 | AH70: 13539.08177 | AI70: 13539.08177 | AJ70: 13539.08177 | AK70: 13539.08177 | AL70: 13539.08177 | AM70: 13539.08177 | AN70: 13539.08177 | AO70: 13539.08177 | AP70: 13539.08177 | AQ70: 13539.08177 | AR70: 13539.08177 | AS70: 13539.08177 | AT70: 13539.08177 | AU70: 13539.08177 | AV70: 13539.08177 | AW70: 13539.08177 | AX70: 13539.08177 | AY70: 0 | AZ70: 0 | BA70: 0 | BB70: 0 | BC70: 0 | BD70: 0 | BE70: 0 | BF70: 0 | BG70: 0 | BH70: 0 | BI70: 0 | BJ70: 0
A71: Inversión | B71: 169622.25 | C71: 0 | D71: 0 | E71: 0 | F71: 0 | G71: 0 | H71: 0 | I71: 0 | J71: 0 | K71: 0 | L71: 0 | M71: 0 | N71: 0 | O71: 0 | P71: 0 | Q71: 0 | R71: 0 | S71: 0 | T71: 0 | U71: 0 | V71: 0 | W71: 0 | X71: 0 | Y71: 0 | Z71: 0 | AA71: 0 | AB71: 0 | AC71: 0 | AD71: 0 | AE71: 0 | AF71: 0 | AG71: 0 | AH71: 0 | AI71: 0 | AJ71: 0 | AK71: 0 | AL71: 0 | AM71: 0 | AN71: 0 | AO71: 0 | AP71: 0 | AQ71: 0 | AR71: 0 | AS71: 0 | AT71: 0 | AU71: 0 | AV71: 0 | AW71: 0 | AX71: 0 | AY71: 0 | AZ71: 0 | BA71: 0 | BB71: 0 | BC71: 0 | BD71: 0 | BE71: 0 | BF71: 0 | BG71: 0 | BH71: 0 | BI71: 0 | BJ71: 0
A72: EGRESOS | B72: 179504.25 | C72: 0 | D72: 0 | E72: 0 | F72: 0 | G72: 0 | H72: 0 | I72: 0 | J72: 0 | K72: 0 | L72: 0 | M72: 0 | N72: 0 | O72: 3294 | P72: 0 | Q72: 0 | R72: 0 | S72: 0 | T72: 0 | U72: 0 | V72: 0 | W72: 0 | X72: 0 | Y72: 0 | Z72: 0 | AA72: 13539.08177 | AB72: 13539.08177 | AC72: 13539.08177 | AD72: 13539.08177 | AE72: 13539.08177 | AF72: 13539.08177 | AG72: 13539.08177 | AH72: 13539.08177 | AI72: 13539.08177 | AJ72: 13539.08177 | AK72: 13539.08177 | AL72: 13539.08177 | AM72: 13539.08177 | AN72: 13539.08177 | AO72: 13539.08177 | AP72: 13539.08177 | AQ72: 13539.08177 | AR72: 13539.08177 | AS72: 13539.08177 | AT72: 13539.08177 | AU72: 13539.08177 | AV72: 13539.08177 | AW72: 13539.08177 | AX72: 13539.08177 | AY72: 0 | AZ72: 0 | BA72: 0 | BB72: 0 | BC72: 0 | BD72: 0 | BE72: 0 | BF72: 0 | BG72: 0 | BH72: 0 | BI72: 0 | BJ72: 0
A74: FCFF | B74: 460495.75 | C74: -48845.45583 | D74: -48566.79099 | E74: -48249.46859 | F74: -48131.89189 | G74: -48006.27648 | H74: -47864.84006 | I74: 487296.0484 | J74: -47528.53926 | K74: -47332.20564 | L74: -47111.05963 | M74: -46863.63199 | N74: -47493.79945 | O74: -72850.73174 | P74: -68295.32209 | Q74: 465110.2223 | R74: -65357.72797 | S74: -63683.67146 | T74: -61850.95656 | U74: -59851.91856 | V74: -57639.42857 | W74: -55199.96691 | X74: -52537.07556 | Y74: -49629.9622 | Z74: -47368.07727 | AA74: -62850.35513 | AB74: -53412.3531 | AC74: -43041.94784 | AD74: -32000.07486 | AE74: -20305.7276 | AF74: -7930.239772 | AG74: 2350.633131 | AH74: 14118.59695 | AI74: 26567.38143 | AJ74: 39731.63126 | AK74: 53659.06504 | AL74: 69918.73901 | AM74: 90081.12598 | AN74: 112020.2195 | AO74: 134966.0421 | AP74: 158561.9315 | AQ74: 182736.204 | AR74: 207480.5053 | AS74: 232805.6143 | AT74: 258725.579 | AU74: 285256.2635 | AV74: 312413.532 | AW74: 340207.8594 | AX74: -332626.3573 | AY74: 424691.8416 | AZ74: 462034.6771 | BA74: 499841.1589 | BB74: 537453.7431 | BC74: 574710.5111 | BD74: 611572.7106 | BE74: 648031.5182 | BF74: 684089.8327 | BG74: 719753.8852 | BH74: 755022.6286 | BI74: 789904.4522 | BJ74: 131523.1687
A75: Flujo Efectivo | B75: 460495.75 | C75: 411650.2942 | D75: 363083.5032 | E75: 314834.0346 | F75: 266702.1427 | G75: 218695.8662 | H75: 170831.0261 | I75: 658127.0745 | J75: 610598.5352 | K75: 563266.3296 | L75: 516155.27 | M75: 469291.638 | N75: 421797.8385 | O75: 348947.1068 | P75: 280651.7847 | Q75: 745762.007 | R75: 680404.2791 | S75: 616720.6076 | T75: 554869.651 | U75: 495017.7325 | V75: 437378.3039 | W75: 382178.337 | X75: 329641.2614 | Y75: 280011.2992 | Z75: 232643.222 | AA75: 169792.8668 | AB75: 116380.5137 | AC75: 73338.56588 | AD75: 41338.49102 | AE75: 21032.76342 | AF75: 13102.52365 | AG75: 15453.15678 | AH75: 29571.75373 | AI75: 56139.13515 | AJ75: 95870.76641 | AK75: 149529.8315 | AL75: 219448.5705 | AM75: 309529.6964 | AN75: 421549.9159 | AO75: 556515.958 | AP75: 715077.8896 | AQ75: 897814.0936 | AR75: 1105294.599 | AS75: 1338100.213 | AT75: 1596825.792 | AU75: 1882082.056 | AV75: 2194495.588 | AW75: 2534703.447 | AX75: 2202077.09 | AY75: 2626768.931 | AZ75: 3088803.609 | BA75: 3588644.767 | BB75: 4126098.511 | BC75: 4700809.022 | BD75: 5312381.732 | BE75: 5960413.25 | BF75: 6644503.083 | BG75: 7364256.968 | BH75: 8119279.597 | BI75: 8909184.049 | BJ75: 9040707.218
A77: VAN | B77: 267528.3595
A78: Tasa de descuento | B78: 0.065
A79: TIR | B79: 0.1015403186
A80: Proyecto Viable | B80: VIABLE

Sheet Amort
A4: Bien de Uso | B4: Costo Unitario | C4: Cantidad | D4: CxQ | E4: Amortización (años) | F4: Amortización (mensual)
A5: Computadoras Año 1 | B5: 1098 | C5: 9 | D5: =+B5*C5 -> 9882 | E5: 5 | F5: =+B5/E5/12*C5 -> 164.7
A6: Computadoras Año 2 | B6: 1098 | C6: 3 | D6: 3294 | E6: 5 | F6: 54.9

Sheet Inflación USD
A1: Año | B1: Inflación anual | C1: https://www.bls.gov/
A2: 2020 | B2: 0.013
A3: 2019 | B3: 0.023
A4: 2018 | B4: 0.02
A5: 2017 | B5: 0.02
A6: 2016 | B6: 0.021
A7: Promedio | B7: =+AVERAGE(B2:B6) -> 0.0194
